Cogmind - Beta 12 @@@ ROGUE MODE // 2023.11.12 @ 04:21:13 Player: Blaj Result: Destroyed by H-88 Terminator with Heavy Machine Gun Performance ------------- Evolutions (9) 4500 Regions Visited (32) 6400 Robots Destroyed (449) 2245 Value Destroyed (20643) 20643 Prototype IDs (62) 1240 Alien Tech Used (9) 1800 Bonus (8302) 8302 TOTAL SCORE: 45130 Bonus ------- High Alert Combat Kills 1118 Follower Combat Kills 2602 Network Hubs Disabled 400 Met Data Miner 300 Met Warlord at Base 500 MAIN.C Attacked Warlord 500 Warlord Defense Kills 1464 Built Enhanced Grunts 300 Met R17 at Cetus 500 Used Core Reset Matrix 3000 Friendly Fire -2382 Cogmind --------- Core Integrity 0/1600 Matter 215/300 Energy 100/100 System Corruption 0% Temperature Cool (0) Movement Walking (190) Ox1 Location -1/Command Parts ------- > --- POWER (3) -------- (None) > --- PROPULSION (5) --- Centrium Leg > --- UTILITY (13) ----- High-capacity Storage Unit > --- WEAPON (4) ------- (None) > --- INVENTORY (20) --- Myomer Leg Advanced Energy Well (500) Structural Scanner Reaction Control System Experimental Weapon Shielding Medium Reactive Plating Phase Redirector Antimissile System Subatomic Replicator Plasma Cutter Peak State ------------ > --- POWER ------------ Particle Reactor Light Quantum Reactor Light Quantum Reactor > --- PROPULSION ------- Centrium Leg Centrium Leg Centrium Leg Centrium Leg Centrium Leg > --- UTILITY ---------- Power Amplifier High-capacity Storage Unit Experimental Optical Array Long-range Sensor Array Advanced Signal Interpreter Advanced Melee Analysis Suite Advanced Target Analyzer Advanced Transmission Jammer Centrium Medium Armor Plating Medium Regenerative Plating Experimental Force Field Phase Redirector Advanced Hacking Suite > --- WEAPON ----------- Phasing Sabre Molecular Scythe Sigix Broadsword > --- INVENTORY -------- Myomer Leg Enhanced Biometal Leg Experimental Coolant Injector Advanced Energy Well Nanoactuators Experimental Weapon Shielding Centrium Medium Armor Plating Medium Reactive Plating Experimental Thermal Shield Advanced Force Field Subatomic Replicator Microwarp Drive Enhanced Nova Cannon Sigix Terminator Plasma Cutter [Rating: 219] Favorites ----------- Power Quantum Reactor Engine Light Angular Momentum Engine Power Core Light Nuclear Core Reactor Quantum Reactor Propulsion Enhanced Flexi-carbon Leg Treads Improved Treads Leg Enhanced Flexi-carbon Leg Wheel Wheel Utility High-capacity Storage Unit Device Long-range Sensor Array Storage High-capacity Storage Unit Processor Core Analyzer Hackware Improved Hacking Suite Protection Centrium Medium Armor Plating Artifact Phase Armor Weapon Phasing Sabre Energy Gun Hypervelocity EM Gauss Rifle Energy Cannon Enhanced Nova Cannon Ballistic Gun Assault Rifle Ballistic Cannon Hypervelocity Mass Driver Launcher Rocket Array Special Weapon Remote Datajack Impact Weapon Makeshift Hammer Slashing Weapon Phasing Sabre Piercing Weapon Spear Special Melee Weapon Datajack Build | -11 -10 -10 -9 -9 -8 -7 -7 -7 -7 -6 -6 -6 -6 -6 -5 -5 -5 -5 -5 -5 -4 -4 -4 -4 -3 -3 -3 -2 -2 -2 -1 -1 ------- Run | Jun Mat Min Mat Min Mat Fac Low Low Zio Pro Fac Low Low Dat Pro Fac Ext Cet Arc Hub Fac Upp Upp War Pro Res Tes Res Qua Sec Acc Com Slots Evolved 18 | . . . 2 . 2 2 . . . . 2 . . . . 2 . . . . 2 . . . . 2 . 2 . . 2 . Power 2 | . . . . . . . . . . . . . . . . 1 . . . . . . . . . . . . . . 1 . Propulsion 3 | . . . 1 . 1 1 . . . . . . . . . . . . . . . . . . . . . . . . . . Utility 11 | . . . 1 . 1 1 . . . . 2 . . . . 1 . . . . 2 . . . . 1 . 2 . . . . Weapon 2 | . . . . . . . . . . . . . . . . . . . . . . . . . . 1 . . . . 1 . Parts Attached 758 | 1 . 4 33 8 73 49 20 6 2 22 36 18 2 20 16 48 20 17 8 12 87 8 3 17 18 9 37 22 74 38 18 12 Power 42 | . . 1 5 . 4 . . 1 . . 2 . . 1 2 3 2 3 1 . 7 1 . 1 . . . . 2 3 2 1 Engine 8 | . . 1 4 . . . . . . . 2 . . . . 1 . . . . . . . . . . . . . . . . Core 12 | . . . 1 . 4 . . 1 . . . . . . 1 1 1 1 . . 2 . . . . . . . . . . . Reactor 22 | . . . . . . . . . . . . . . 1 1 1 1 2 1 . 5 1 . 1 . . . . 2 3 2 1 Propulsion 95 | . . . 6 5 16 11 3 1 2 1 9 1 . 4 . 7 2 . 1 . 8 . 1 3 1 . 2 3 3 3 2 . Treads 2 | . . . . . . . 2 . . . . . . . . . . . . . . . . . . . . . . . . . Leg 85 | . . . 6 3 10 11 1 1 2 1 9 1 . 4 . 7 2 . 1 . 8 . 1 3 1 . 2 3 3 3 2 . Wheel 8 | . . . . 2 6 . . . . . . . . . . . . . . . . . . . . . . . . . . . Hover . | . . . . . . . . . . . . . . . . . . . . . . . . . . . . . . . . . Flight . | . . . . . . . . . . . . . . . . . . . . . . . . . . . . . . . . . Utility 466 | 1 . 1 10 2 43 30 11 3 . 12 21 7 . 12 5 34 14 7 2 8 61 4 2 7 14 7 32 14 56 26 11 9 Device 285 | 1 . 1 5 2 22 18 5 2 . 5 9 3 . 4 3 18 9 3 1 6 40 3 2 5 8 4 23 10 37 22 7 7 Storage 13 | . . . 1 . 5 . . . . . 1 . . 1 . 1 . . . . 1 . . 1 . . . . 1 . 1 . Processor 21 | . . . . . . 1 . . . . 1 1 . . . . . . . . 5 . . . 1 1 2 2 6 1 . . Hackware 17 | . . . . . 1 . . . . . 5 . . . . 2 1 . 1 1 . . . . 2 . . 1 2 . . 1 Protection 125 | . . . 4 . 15 11 6 1 . 7 5 3 . 7 2 13 4 4 . 1 15 1 . 1 3 2 7 1 8 2 1 1 Artifact 5 | . . . . . . . . . . . . . . . . . . . . . . . . . . . . . 2 1 2 . Weapon 155 | . . 2 12 1 10 8 6 1 . 9 4 10 2 3 9 4 2 7 4 4 11 3 . 6 3 2 3 5 13 6 3 2 Energy Gun 1 | . . . . . . . . . . . . . . . . . . . . . . . . . . . 1 . . . . . Energy Cannon 11 | . . . . . . . . . . . . . . . . . . . . . 1 . . 2 . . . . 5 2 . 1 Ballistic Gun 3 | . . . 2 . . . . . . . . . . . . . . . 1 . . . . . . . . . . . . . Ballistic Cannon 1 | . . . . . . . . . . . . . . . . . . . . . 1 . . . . . . . . . . . Launcher 39 | . . 2 1 1 1 1 3 . . 5 . 5 1 . 4 . 1 2 . 1 2 2 . 2 1 . . 1 1 . 1 1 Special Weapon 10 | . . . 1 . 3 . . . . . . . . 1 . 1 . 1 1 1 1 . . . . . . . . . . . Impact Weapon 11 | . . . 3 . . 2 1 . . . 1 . . . . 1 . 1 . . 1 . . 1 . . . . . . . . Slashing Weapon 59 | . . . 5 . 6 4 2 1 . 1 2 3 . 1 . 1 1 . . 2 5 1 . 1 2 2 2 4 7 4 2 . Piercing Weapon 19 | . . . . . . . . . . 3 1 2 1 1 5 1 . 3 2 . . . . . . . . . . . . . Special Melee Weapon 1 | . . . . . . 1 . . . . . . . . . . . . . . . . . . . . . . . . . . Unidentified Prototypes 36 | . . . . . . 2 . . . . . . . 2 . 2 . 2 . 2 3 . . 5 . 2 7 . 7 2 . . Corrupted Parts 2 | . . . . . . . 1 . . . . . . . . . . 1 . . . . . . . . . . . . . . System Corruption 5 | . . . . . . . 2 . . . . . . . . . . 3 . . . . . . . . . . . . . . Parts Lost 107 | . . . 9 1 10 3 5 2 . 5 5 . . 7 . 2 1 3 . . 10 . . 1 2 . . . 6 2 7 26 Power 14 | . . . 1 . 2 . . 1 . . 1 . . . . . . 1 . . 2 . . . . . . . . 2 1 3 Propulsion 34 | . . . 5 1 5 . 2 . . 4 2 . . 4 . . 1 . . . 5 . . . . . . . . . 1 4 Utility 46 | . . . 2 . 3 1 3 1 . 1 1 . . 2 . 2 . 1 . . 2 . . . 2 . . . 6 . 4 15 Weapon 13 | . . . 1 . . 2 . . . . 1 . . 1 . . . 1 . . 1 . . 1 . . . . . . 1 4 Highest Loss Streak 16 | . . . 3 1 6 1 3 2 . 2 3 . . 4 . 1 1 1 . . 3 . . 1 1 . . . 2 1 6 16 To Critical Strikes 4 | . . . . . . . . . . . . . . . . . 1 . . . 1 . . . . . . . . . 1 1 Average Slot Usage (%) 93 | . 100 98 83 92 95 95 92 97 92 78 89 100 100 96 100 99 99 97 99 99 96 94 94 92 92 95 94 94 91 94 93 43 Engine 1 | . 14 14 9 . . . . . . . 4 6 6 3 . 3 2 . . . . . . . . . . . . . . . Core 2 | . . . . 11 8 7 7 6 7 7 1 . . . . 1 2 1 . . . . . . . . . . . . . . Reactor 3 | . . . . . . . . . . . . . . 2 6 4 4 8 11 11 9 10 10 8 5 4 4 4 7 7 11 3 Leg 26 | . 28 28 25 16 29 37 24 24 36 18 25 33 33 32 33 28 29 29 29 29 25 26 26 26 26 23 23 21 21 21 20 13 Device 9 | . 14 12 8 21 9 8 7 8 7 6 5 6 6 6 10 8 5 8 6 4 8 5 5 5 10 13 13 16 12 18 18 5 Storage 6 | . 14 14 11 11 9 7 7 7 7 7 6 6 6 6 6 5 5 5 5 5 5 5 5 5 5 4 4 4 5 4 4 4 Processor 10 | . . . . . . 7 7 7 7 7 10 10 13 13 13 11 11 11 11 11 10 21 21 21 21 19 18 13 15 17 16 6 Hackware 5 | . . . . . 6 . . . . . 14 1 . . . 10 10 6 8 15 12 . . . 3 9 4 8 9 4 3 1 Protection 10 | . . . 6 . 7 12 14 13 15 15 7 20 20 15 15 7 11 9 11 7 12 19 21 21 11 4 9 13 3 9 7 2 Impact Weapon 1 | . . . 6 . . 2 6 5 . . 1 4 . . . 3 . 4 5 5 2 . . . 3 . . . . . . . Slashing Weapon 7 | . . . 8 11 16 7 6 6 7 6 5 5 6 6 6 4 4 . . 2 4 4 5 4 3 14 13 12 9 7 11 3 Naked Turns . | . . . . . . . . . . . . . . . . . . . . . . . . . . . . . . . . . Heaviest Build 179 | 13 13 15 27 20 56 90 82 71 71 99 89 84 77 80 90 111 110 113 110 101 126 115 110 118 127 118 132 131 179 131 150 145 Greatest Support 150 | 20 20 20 33 30 46 65 65 60 80 82 92 101 101 125 125 140 140 140 140 140 140 136 136 143 143 143 143 150 150 150 150 150 Greatest Overweight (x) 4 | . . . 4 1 4 1 2 1 1 2 2 . . . . . . . . . 2 . . . . . . . 1 1 . 1 Average Overweight (x) . | . . . . . . . . 1 . 1 . . . . . . . . . . . . . . . . . . . . . . Largest Inventory Capacity 20 | 8 8 8 10 10 20 20 20 20 20 20 20 20 20 20 20 20 20 20 20 20 20 20 20 20 20 20 20 20 20 20 20 20 Average Capacity 19 | 8 8 8 9 10 17 20 20 20 20 20 20 20 20 20 20 20 20 20 20 20 20 20 20 20 20 20 20 20 20 20 20 20 Most Carried 20 | 5 5 8 10 10 19 20 20 20 20 20 20 19 20 20 20 20 20 20 20 20 20 20 20 20 20 20 20 20 20 20 20 13 Average Carried 18 | 2 3 6 9 9 14 19 18 17 19 19 18 18 19 19 19 19 19 19 19 20 18 19 19 19 17 19 19 19 19 19 16 11 Final Capacity 20 | 8 8 8 10 10 20 20 20 20 20 20 20 20 20 20 20 20 20 20 20 20 20 20 20 20 20 20 20 20 20 20 20 20 Final Carried 20 | 3 5 8 10 10 19 20 18 20 20 19 20 19 20 20 20 20 20 20 20 20 20 20 20 17 20 20 19 20 18 20 13 10 Class Distribution -------------------- 30% | Scavenger-Mutant 20% | Mutant 17% | Hacker-Mutant 13% | Derelict-Mutant 6% | Scavenger-Gladiator Dominant Class ---------------- Mutant | -10/Materials Mutant | -10/Mines Mutant | -9/Materials Mutant | -9/Mines Scavenger-Mutant | -8/Materials Scavenger-Mutant | -7/Factory Mutant | -7/Lower Caves Mutant | -7/Lower Caves Mutant | -7/Zion Derelict-Mutant | -6/Proximity Caves Derelict-Mutant | -6/Factory Derelict-Mutant | -6/Lower Caves Derelict-Mutant | -6/Lower Caves Derelict-Mutant | -6/Data Miner Scavenger-Mutant | -5/Proximity Caves Hacker-Mutant | -5/Factory Hacker-Mutant | -5/Extension Scavenger-Mutant | -5/Cetus Scavenger-Mutant | -5/Archives Hacker-Mutant | -5/Hub_04(d) Hacker-Mutant | -4/Factory Scavenger-Gladiator | -4/Upper Caves Scavenger-Gladiator | -4/Upper Caves Commander-Mutant | -4/Warlord Mutant | -3/Proximity Caves Scavenger-Mutant | -3/Research Scavenger-Mutant | -3/Testing Hacker-Mutant | -2/Research Hacker-Mutant | -2/Quarantine Scavenger-Gladiator | -2/Section 7 Scavenger-Gladiator | -1/Access Alien-Mutant | -1/Command Resources | -11 -10 -10 -9 -9 -8 -7 -7 -7 -7 -6 -6 -6 -6 -6 -5 -5 -5 -5 -5 -5 -4 -4 -4 -4 -3 -3 -3 -2 -2 -2 -1 -1 ----------- Run | Jun Mat Min Mat Min Mat Fac Low Low Zio Pro Fac Low Low Dat Pro Fac Ext Cet Arc Hub Fac Upp Upp War Pro Res Tes Res Qua Sec Acc Com Matter Collected 9986 | 306 . 104 361 109 722 573 323 125 25 416 399 175 204 272 326 410 357 281 485 115 1023 127 68 250 263 . 479 296 788 552 52 . Remotely . | . . . . . . . . . . . . . . . . . . . . . . . . . . . . . . . . . Salvage Created 19745 | 148 . 131 1254 237 1681 1196 558 123 137 873 765 206 179 405 528 809 425 292 320 102 2033 113 187 650 686 33 1331 496 1879 1775 110 83 Parts 920 | 13 . 11 62 17 103 50 23 7 1 23 39 3 6 18 25 29 30 20 30 7 98 10 4 5 14 3 66 25 94 72 6 6 Haulers Intercepted 9 | . . . 1 . 2 2 . . . . . . . . . 3 . . . 1 . . . . . . . . . . . . Recyclers Shooed 2 | . . . 2 . . . . . . . . . . . . . . . . . . . . . . . . . . . . . Parts Field Recycled . | . . . . . . . . . . . . . . . . . . . . . . . . . . . . . . . . . Retrieved Matter . | . . . . . . . . . . . . . . . . . . . . . . . . . . . . . . . . . Parts Self-Destructed 88 | . . . . . . . 7 5 3 16 . 1 5 . 13 . . . . . . 8 4 . 26 . . . . . . . Prevented 3 | . . . . . . . . 2 . . . . . . . . . . . . . . . . 1 . . . . . . . Kills | -11 -10 -10 -9 -9 -8 -7 -7 -7 -7 -6 -6 -6 -6 -6 -5 -5 -5 -5 -5 -5 -4 -4 -4 -4 -3 -3 -3 -2 -2 -2 -1 -1 ------- Run | Jun Mat Min Mat Min Mat Fac Low Low Zio Pro Fac Low Low Dat Pro Fac Ext Cet Arc Hub Fac Upp Upp War Pro Res Tes Res Qua Sec Acc Com Combat Hostiles Destroyed 333 | . . 5 25 . 25 16 19 . . 25 12 6 4 4 19 8 5 10 . . 34 5 3 11 5 . 16 8 26 25 16 1 Melee 188 | . . . 12 . 18 14 3 . . 4 11 . . 4 3 6 5 . . . 29 1 3 . 1 . 16 4 26 25 2 1 Guns 3 | . . . 3 . . . . . . . . . . . . . . . . . . . . . . . . . . . . . AOE 130 | . . 5 6 . 7 . 16 . . 21 . 6 4 . 16 . . 10 . . 3 4 . 11 3 . . 4 . . 14 . Classes Destroyed 25 | 2 . 3 6 . 1 2 1 2 . 1 . 2 . . 1 . . . . . . . . 1 . . . . 2 . 1 . Worker 12 | . . 1 1 2 2 . . . . . . . . . . 1 . . . . 1 . . . . . . 1 . . 2 1 Builder 24 | . . . 8 1 2 1 . . . . . . . . . 2 3 . . 1 3 . . . . . 1 1 . . 1 . Tunneler 6 | 5 . . . . . . . . . . . . . . . . . . . . . . . . . . . . . . 1 . Hauler 9 | . . . 1 . 2 2 . . . . . . . . . 3 . . . 1 . . . . . . . . . . . . Recycler 15 | 1 . 1 3 1 4 3 . . . . . . . . . . . . . . 2 . . . . . . . . . . . Minesweeper 2 | . . . . . . . . 1 . . . . 1 . . . . . . . . . . . . . . . . . . . Mechanic 1 | . . . . . . . . . . . . . . . 1 . . . . . . . . . . . . . . . . . Operator 16 | . . . 1 . 1 . . . . . 3 . . . . . 2 . 8 . . . . . . . . 1 . . . . Watcher 18 | . . . 2 . 2 1 . . . . . . . . . . . . . . 3 . . . 2 1 3 2 1 1 . . Swarmer 80 | . . 3 4 . 3 . 10 . . 4 . . . . 10 . . 4 . . 15 4 1 2 2 . . . . 7 11 . Grunt 119 | . . 2 13 3 12 8 6 . . 12 6 4 4 . 3 4 1 4 . . 2 . 1 8 . . 8 3 6 6 3 . Brawler 10 | . . . 1 . 1 . . . . 5 . . . . 1 . . . . . . . . . . . . . 1 . 1 . Duelist 4 | . . . . . . . . . . 1 . . . . 2 . . . . . . . . . . . . 1 . . . . Protector 1 | . . . . . . . . . . . . . . . . . . . . . . . . . . . . . . . 1 . Sentry 44 | . . . 7 . 7 3 2 . . 2 1 . . . 1 1 3 . . . 5 . 1 . 1 . 3 2 . 5 . . Specialist 4 | . . . . . 2 . . . . . 2 . . . . . . . . . . . . . . . . . . . . . Hunter 22 | . . . . . . 3 1 . . 1 1 . . . . 2 . 2 . . 4 . . . 2 . 2 . 2 2 . . Programmer 41 | . . . . . . 2 . . . . 2 . . . 2 1 1 . . . 8 1 . . . . 3 1 15 4 . 1 Behemoth 1 | . . . . . . . . . . . . 1 . . . . . . . . . . . . . . . . . . . . S7 Guard 1 | . . . . . . . . . . . . . . . . . . . . . . . . . . . . . . 1 . . Enhanced Grunt 4 | . . . . . . . . . . . . . . 4 . . . . . . . . . . . . . . . . . . Executioner 1 | . . . . . . . . . . . . . . . . . . . . . . . . 1 . . . . . . . . Alpha 7 1 | . . . . . . . . . . . . . . . . . . . . . . . . . . . . . 1 . . . Fortress 1 | . . . . . . . . . . . . . . . . . . . . . . . . . . . . . 1 . . . Samaritan 3 | . . . . . . . . 2 . . . 1 . . . . . . . . . . . . . . . . . . . . Thief 1 | . . . . . . . . . . . . 1 . . . . . . . . . . . . . . . . . . . . Surgeon 1 | . . . . . . . . . . . . . . . . . . . . . . . . 1 . . . . . . . . Thug 3 | . . . . . . . 2 . . . . . . . . . . . . . . . . . . . . 1 . . . . Butcher 2 | . . . . . . . . . . . . . . . . . . . . . . . . 2 . . . . . . . . Mutant 4 | . . . . . . . 1 . . . . . . . . . . . . . . . . 3 . . . . . . . . Best Kill Streak 18 | 4 . 7 13 2 7 3 9 1 . 7 3 4 4 1 5 2 2 8 2 1 5 4 3 11 2 1 5 7 5 5 18 1 Combat Bots Only 16 | . . 5 7 . 5 3 9 . . 7 3 4 4 1 5 2 2 8 . . 5 4 3 11 2 . 5 4 5 5 16 1 Max Kills in Single Turn 16 | 1 . 2 4 5 2 1 5 1 . 4 1 4 2 1 4 1 1 4 1 1 3 4 1 10 1 1 1 2 1 1 16 1 Gunslinging . | . . . . . . . . . . . . . . . . . . . . . . . . . . . . . . . . . Exploded 14 | . . 1 2 . 2 . 5 . . 4 . 4 2 . 4 . . 4 . . 3 4 . 7 1 . . 2 . . 14 . Melee 1 | . . . 1 . 1 1 1 . . 1 1 . . 1 1 1 1 . . . 1 1 1 . 1 . 1 1 1 1 1 1 Uniques/NPCs Destroyed 1 | . . . . . . . . . . . . . . 1 . . . . . . . . . . . . . . . . . . Data Miner (-6/Data Miner) Combat | -11 -10 -10 -9 -9 -8 -7 -7 -7 -7 -6 -6 -6 -6 -6 -5 -5 -5 -5 -5 -5 -4 -4 -4 -4 -3 -3 -3 -2 -2 -2 -1 -1 -------- Run | Jun Mat Min Mat Min Mat Fac Low Low Zio Pro Fac Low Low Dat Pro Fac Ext Cet Arc Hub Fac Upp Upp War Pro Res Tes Res Qua Sec Acc Com Damage Taken 33888 | . . 134 1635 64 1461 1192 1305 163 . 986 1257 72 66 1243 578 1385 446 846 40 243 3537 230 65 1238 584 110 818 417 3607 3878 1806 4482 Core 4799 | . . . 297 32 330 116 115 . . 88 121 . . 80 56 86 59 63 . 13 310 27 . 148 52 14 57 55 744 317 114 1505 Absorbed by Shields 10320 | . . . . . 44 420 86 . . 72 165 4 . 86 150 158 117 307 14 49 1238 10 19 409 192 115 660 400 1284 1862 1810 649 Redirected to Core 663 | . . . . . . . . . . . . . . . . . . . . . . . . . . . . . 663 . . . Redirected to Shielding 349 | . . . 27 . 20 24 55 . . . . . . 30 21 70 . . . . 29 . 8 43 22 . . . . . . . Regen/Repaired (Parts) 7589 | . . . . . 65 97 . . . . 574 . . . . 561 . 152 19 1 2644 20 . 133 286 3 139 83 827 1332 565 88 Core Remaining (%) 62 | 100 . 100 . 17 40 . . . . 54 . . . . 69 . . . . 77 . . . . 53 . 94 . . 23 . . Volleys Fired 316 | 16 1 7 25 . 14 . 6 . . 11 . 3 2 2 7 2 2 6 85 1 15 1 . 2 3 . . 4 33 31 1 36 Largest 2 | 2 2 2 2 . 1 . 1 . . 2 . 2 1 1 1 1 1 1 1 1 1 1 . 2 1 . . 1 2 1 1 1 Hottest 200 | 40 40 50 100 . 100 . 45 . . 90 . 90 45 20 45 5 45 45 33 5 105 45 . 90 45 . . 45 200 120 . 120 Shots Fired 369 | 32 2 8 34 1 14 . 6 . . 12 . 6 3 2 7 2 2 6 84 1 15 1 . 4 3 . . 4 52 31 1 36 Gun 134 | 32 2 1 18 . . . . . . . . . . . . . . . 81 . . . . . . . . . . . . . Cannon 133 | . . . . . . . . . . . . . . . . . . . . . 14 . . . . . . . 52 31 . 36 Launcher 73 | . . 7 4 1 7 . 6 . . 12 . 6 3 . 7 . 2 4 . . 1 1 . 4 3 . . 4 . . 1 . Special 29 | . . . 12 . 7 . . . . . . . . 2 . 2 . 2 3 1 . . . . . . . . . . . . Kinetic 147 | 32 2 1 18 . . . . . . . . . . . . . . . 81 . 13 . . . . . . . . . . . Thermal 99 | . . . 12 . 7 . . . . . . . . 2 . . . . . . 1 . . . . . . . 9 31 1 36 Explosive 72 | . . 7 4 1 7 . 6 . . 12 . 6 3 . 7 . 2 4 . . 1 1 . 4 3 . . 4 . . . . Electromagnetic . | . . . . . . . . . . . . . . . . . . . . . . . . . . . . . . . . . Entropic 43 | . . . . . . . . . . . . . . . . . . . . . . . . . . . . . 43 . . . Robot Hit Streak 31 | 5 2 3 9 5 2 . 3 . . 7 . 4 5 . 4 2 . 3 6 3 7 2 . 2 9 . . 15 31 . . . Robot Miss Streak 8 | 2 1 . 1 . 2 . 4 . . 4 . 2 1 2 8 . . 2 4 . 3 2 . 3 2 . . 4 1 . . 1 Penetration Max 1 | . . . . . . . . . . . . . . . . . . . 1 . . . . . . . . . . . . . Secondary Targets . | . . . . . . . . . . . . . . . . . . . . . . . . . . . . . . . . . Shots Hit Robots 1007 | 17 1 3 90 3 71 64 22 5 4 16 40 6 3 27 22 28 27 14 51 8 110 5 4 2 36 7 60 26 129 96 6 4 Core Hits 860 | 8 . 10 32 7 42 23 58 2 1 94 16 31 21 15 53 13 15 32 25 2 53 8 2 85 25 1 30 45 55 40 12 4 Critical Kills 11 | . . . . . . 1 . . . . . . . . . . . . 8 . 1 . . . 1 . . . . . . . Critical Parts Destroyed 23 | 1 . . 6 . . 2 . 1 . . . . . . . 1 . . 8 . 3 . . . 1 . . . . . . . Critical Strikes 118 | 1 . . 6 . 6 7 1 1 . 1 4 . . 2 1 2 2 2 16 . 12 . . . 5 3 7 2 19 16 1 1 Destroy 18 | 1 . . . . . . . . . . . . . . . . . . 16 . 1 . . . . . . . . . . . Smash 17 | . . . 6 . . 3 . 1 . . . . . . . 1 . . . . 3 . . . 3 . . . . . . . Sever 75 | . . . . . 6 4 1 . . . 3 . . 2 1 1 2 . . . 8 . . . 2 3 7 2 15 16 1 1 Impale 4 | . . . . . . . . . . 1 1 . . . . . . 2 . . . . . . . . . . . . . . Sunder 4 | . . . . . . . . . . . . . . . . . . . . . . . . . . . . . 4 . . . Melee Attacks 1478 | . . . 99 4 114 111 21 10 8 11 99 3 2 60 21 43 36 12 . 14 188 6 6 1 57 18 107 37 142 144 28 76 Impact 177 | . . . 40 . . 18 3 4 . . 13 . . . . 5 . 2 . 5 52 . . 1 34 . . . . . . . Slashing 1227 | . . . 59 4 114 92 18 6 8 4 71 2 . 45 14 33 30 . . 4 136 6 6 . 23 18 107 37 142 144 28 76 Piercing 73 | . . . . . . . . . . 7 15 1 2 15 7 5 6 10 . 5 . . . . . . . . . . . . Sneak Attacks 77 | . . . 16 2 12 9 5 3 . . 2 2 1 1 1 6 4 . . 2 4 . . . . . 4 . 1 . 1 1 Combat Hostiles 5 | . . . . . . . . . . . . . . . . . 2 . . . . . . . . . 2 . 1 . . . Follow-up Attacks 138 | . . . 9 . 8 9 2 2 . . 4 . . 5 4 3 2 2 . . 15 . . . 2 3 15 9 25 16 3 . Damage Inflicted 73528 | 232 10 490 3125 383 3220 3028 2346 275 377 2917 1959 1159 630 1148 2175 1352 1388 1140 350 328 5236 376 239 2549 2124 330 3221 2128 8895 6503 13651 244 Guns 771 | 216 10 . 195 . . . . . . . . . . . . . . . 350 . . . . . . . . . . . . . Cannons 3689 | . . . . . . . . . . . . . . . . . . . . . 57 . . . . . . . 3589 . . 43 Explosions 27586 | . . 471 552 258 637 . 1539 . . 2670 . 942 569 . 1486 . 37 843 . . 291 154 . 2549 346 . . 1047 . . 13195 . Melee 41253 | . . . 2378 125 2576 3028 807 275 377 247 1954 217 61 1148 689 1352 1351 297 . 319 4866 222 239 . 1758 313 3221 1081 5306 6430 420 196 Ramming 229 | 16 . 19 . . 7 . . . . . 5 . . . . . . . . 9 22 . . . 20 17 . . . 73 36 5 Kinetic 828 | 216 10 . 195 . . . . . . . . . . . . . . . 350 . 57 . . . . . . . . . . . Thermal 13294 | . . . . 56 . . . . . . . . . . . . . . . . . . . . . . . . . . 13195 43 Explosive 14335 | . . 471 552 202 637 . 1539 . . 2670 . 942 569 . 1486 . 37 843 . . 291 154 . 2549 346 . . 1047 . . . . Electromagnetic . | . . . . . . . . . . . . . . . . . . . . . . . . . . . . . . . . . Impact 4641 | . . . 1187 . . 789 177 72 . . 113 . . . . 116 . 72 . 211 1218 . . . 686 . . . . . . . Slashing 35454 | . . . 1191 125 2576 2239 630 203 377 72 1679 187 . 1029 548 1150 1264 . . 36 3648 222 239 . 1072 313 3221 1081 5306 6430 420 196 Piercing 1158 | . . . . . . . . . . 175 162 30 61 119 141 86 87 225 . 72 . . . . . . . . . . . . Entropic 3589 | . . . . . . . . . . . . . . . . . . . . . . . . . . . . . 3589 . . . Highest Corruption 24 | . . . 2 2 . 2 4 4 . . 5 5 5 5 6 4 4 7 7 1 6 7 7 7 2 . 4 . 23 24 . . Average Corruption 5 | . . . 2 2 . 1 3 3 . . 3 5 5 5 5 1 4 6 5 1 4 6 7 6 2 . 3 . 9 23 . . Corruption Purged 17 | . . . . . . . . 4 . . . . . . . . . . 7 . 6 . . . . . . . . . . . Corruption Blocked 48 | . . . . . . . . . . . . . . . . . . . . . . . . . . . . 48 . . . . Effects 479 | . . . 15 6 . 27 23 22 . . 26 23 11 11 21 15 27 10 10 1 46 24 16 . 14 . 23 . 50 58 . . Message Errors 115 | . . . 5 3 . 9 4 6 . . 4 5 4 2 4 4 9 . 1 . 10 10 5 . 1 . 7 . 14 8 . . Matter Fused 97 | . . . 2 . . 2 4 6 . . 10 3 2 2 5 4 2 3 . . 7 7 3 . 4 . 5 . 10 16 . . Heat Flow Errors 66 | . . . 2 . . 3 4 2 . . 4 3 1 3 1 3 3 1 2 1 11 2 2 . 3 . 1 . 6 8 . . Energy Discharges 66 | . . . 2 1 . 7 4 3 . . 3 4 1 2 4 . 2 2 1 . 5 2 3 . 3 . 3 . 5 9 . . Parts Rejected 7 | . . . . . . . 1 . . . . . . 1 . . 1 . . . . . . . . . 1 . . 3 . . Parts Fused 8 | . . . . . . 2 . . . . . . 1 . 1 . . 1 . . . . 1 . . . 1 . 1 . . . Data Loss (minor) 66 | . . . 2 1 . 1 4 2 . . 4 6 1 . 5 2 7 3 3 . 7 1 2 . 2 . 3 . 5 5 . . Data Loss (major) 27 | . . . 1 . . 1 2 2 . . 1 . . . . 1 1 . 2 . 6 . . . 1 . 1 . 5 3 . . Misfires 4 | . . . . 1 . . . . . . . 1 1 . . . . . . . . . . . . . . . . 1 . . Alerts 16 | . . . 1 . . 2 . 1 . . . 1 . 1 1 1 2 . . . . 2 . . . . 1 . 1 2 . . Misdirections 3 | . . . . . . . . . . . . . . . . . . . . . . . . . . . . . 1 2 . . Weapon Failures 4 | . . . . . . . . . . . . . . . . . . . 1 . . . . . . . . . 2 1 . . Overload Shots . | . . . . . . . . . . . . . . . . . . . . . . . . . . . . . . . . . Overflow Damage 4597 | . . 15 655 51 85 311 32 106 137 . 247 118 . 21 58 111 78 . . 44 488 16 41 . 158 20 136 4 157 228 1280 . Projectiles . | . . . . . . . . . . . . . . . . . . . . . . . . . . . . . . . . . Explosions 1312 | . . 15 11 17 43 . 24 . . . . 4 . . 14 . . . . . 15 . . . . . . . . . 1169 . Melee 3285 | . . . 644 34 42 311 8 106 137 . 247 114 . 21 44 111 78 . . 44 473 16 41 . 158 20 136 4 157 228 111 . Knockbacks 17 | . . 1 2 . . 2 . . . . . . . . . 1 . . . . 9 . . . . . . . . 2 . . Impact 17 | . . 1 2 . . 2 . . . . . . . . . 1 . . . . 9 . . . . . . . . 2 . . Kinetic . | . . . . . . . . . . . . . . . . . . . . . . . . . . . . . . . . . Secondary . | . . . . . . . . . . . . . . . . . . . . . . . . . . . . . . . . . Self-Inflicted Damage 945 | . . 38 87 66 38 . 261 . . 124 . 36 10 . 96 . . 19 . . 18 23 . 15 . . . 114 . . . . Shots 44 | . . 3 2 2 1 . 14 . . 6 . 2 1 . 5 . . 1 . . 1 1 . 1 . . . 4 . . . . Rammed . | . . . . . . . . . . . . . . . . . . . . . . . . . . . . . . . . . Targets Rammed 21 | 4 . 3 . . 1 . . . . . 2 . . . . . . . . 1 2 . . . 2 1 . . . 3 1 1 Kicked 21 | 4 . 3 . . 1 . . . . . 2 . . . . . . . . 1 2 . . . 2 1 . . . 3 1 1 Crushed . | . . . . . . . . . . . . . . . . . . . . . . . . . . . . . . . . . Highest Temperature 282 | . . 14 200 6 28 229 241 282 . 63 134 260 162 260 161 232 276 212 220 197 250 228 240 21 277 . 113 . 188 240 . . Average Temperature 79 | . . 8 45 6 7 93 97 125 . 23 51 114 63 93 63 110 109 75 62 103 86 94 109 9 118 . 59 . 43 98 . . Received Heat Transfer 4965 | . . 39 621 . 722 401 222 12 . 293 360 9 30 . 39 302 114 127 . 18 145 . 6 109 81 16 117 74 301 540 173 94 Effects 3 | . . . . . . 1 . . . . . . . . . . . . 1 . 1 . . . . . . . . . . . Energy Bleed 2 | . . . . . . . . . . . . . . . . . . . 1 . 1 . . . . . . . . . . . Interference 1 | . . . . . . 1 . . . . . . . . . . . . . . . . . . . . . . . . . . Siege Activations . | . . . . . . . . . . . . . . . . . . . . . . . . . . . . . . . . . Robots Corrupted . | . . . . . . . . . . . . . . . . . . . . . . . . . . . . . . . . . Combat Hostiles . | . . . . . . . . . . . . . . . . . . . . . . . . . . . . . . . . . Parts Fried 26 | . . . 13 . . 2 . . . . 2 . . . . 4 . . . . 3 . . . 2 . . . . . . . Impact Corruptions 53 | . . . 26 . . 6 . 1 . . 2 . . . . 2 . . . 1 12 . . . 3 . . . . . . . Robots Melted . | . . . . . . . . . . . . . . . . . . . . . . . . . . . . . . . . . Combat Hostiles . | . . . . . . . . . . . . . . . . . . . . . . . . . . . . . . . . . Parts Melted 3 | . . . . . . . . . . . . . . . . . . . . . 1 1 . 1 . . . . . . . . Heat Transferred 87 | . . . . 50 . . . . . . . . . . . . . . . . . . . . . . . . . . . 37 Parts Sabotaged 2 | . . . . . . . . . . 2 . . . . . . . . . . . . . . . . . . . . . . Parts Stolen . | . . . . . . . . . . . . . . . . . . . . . . . . . . . . . . . . . Parts Stripped . | . . . . . . . . . . . . . . . . . . . . . . . . . . . . . . . . . Power Chain Reactions . | . . . . . . . . . . . . . . . . . . . . . . . . . . . . . . . . . Missiles Intercepted . | . . . . . . . . . . . . . . . . . . . . . . . . . . . . . . . . . Alert | -11 -10 -10 -9 -9 -8 -7 -7 -7 -7 -6 -6 -6 -6 -6 -5 -5 -5 -5 -5 -5 -4 -4 -4 -4 -3 -3 -3 -2 -2 -2 -1 -1 ------- Run | Jun Mat Min Mat Min Mat Fac Low Low Zio Pro Fac Low Low Dat Pro Fac Ext Cet Arc Hub Fac Upp Upp War Pro Res Tes Res Qua Sec Acc Com Peak Influence 1859 | 30 39 196 557 242 477 278 . . . . 139 . . . . 250 262 765 531 390 612 . . . . 329 358 482 305 705 1859 1423 Initial 1154 | . 19 15 . 201 94 147 . . . . . . . . . 57 9 117 246 63 143 . . . . 154 20 123 134 130 412 1154 Average 231 | 14 27 125 250 215 228 112 . . . . 53 . . . . 64 126 405 332 167 323 . . . . 176 190 298 134 333 977 1254 Maximum Alert Level 5 | . . . 2 1 2 1 . . . . . . . . . 1 1 3 2 1 2 . . . . 1 1 2 1 3 5 4 Low Security (%) 56 | 100 100 100 42 . 43 82 . . . . 100 . . . . 98 68 17 30 62 15 . . . . 55 51 28 81 37 . . Level 1 30 | . . . 33 100 48 17 . . . . . . . . . 1 31 41 39 37 58 . . . . 44 48 54 18 26 . . Level 2 10 | . . . 23 . 8 . . . . . . . . . . . . 39 29 . 25 . . . . . . 16 . 33 59 . Level 3 . | . . . . . . . . . . . . . . . . . . 1 . . . . . . . . . . . 2 . . Level 4 2 | . . . . . . . . . . . . . . . . . . . . . . . . . . . . . . . . 100 Level 5 . | . . . . . . . . . . . . . . . . . . . . . . . . . . . . . . . 40 . High Security . | . . . . . . . . . . . . . . . . . . . . . . . . . . . . . . . . . Max Security . | . . . . . . . . . . . . . . . . . . . . . . . . . . . . . . . . . Squads Dispatched 93 | . 1 . 7 . 5 13 . . . 1 10 . . . 1 5 3 . . 6 10 . . . 1 2 6 1 6 4 6 5 Investigation 39 | . . . 4 . 2 10 . . . . 5 . . . . 3 1 . . 1 4 . . . 1 2 1 . 1 . 2 2 Extermination 24 | . . . . . . 3 . . . . 2 . . . . 1 . . . 1 5 . . . . . 3 . 5 2 1 1 Reinforcement 22 | . 1 . 2 . 3 . . . . . 3 . . . . 1 2 . . 3 1 . . . . . 2 1 . 2 1 . Assault 8 | . . . 1 . . . . . . 1 . . . . 1 . . . . 1 . . . . . . . . . . 2 2 Garrison . | . . . . . . . . . . . . . . . . . . . . . . . . . . . . . . . . . Intercept . | . . . . . . . . . . . . . . . . . . . . . . . . . . . . . . . . . Searches Triggered . | . . . . . . . . . . . . . . . . . . . . . . . . . . . . . . . . . Construction Impeded 2 | . . . . . . . . . . . . . . . . . 1 . . . . . . . . . . 1 . . . . Haulers Reinforced 2 | . . . . . . . . . . . . . . . . . . . . 1 . . . . . . 1 . . . . . Active Scanning Responses . | . . . . . . . . . . . . . . . . . . . . . . . . . . . . . . . . . Cargo Convoy Interrupts . | . . . . . . . . . . . . . . . . . . . . . . . . . . . . . . . . . Stealth | -11 -10 -10 -9 -9 -8 -7 -7 -7 -7 -6 -6 -6 -6 -6 -5 -5 -5 -5 -5 -5 -4 -4 -4 -4 -3 -3 -3 -2 -2 -2 -1 -1 --------- Run | Jun Mat Min Mat Min Mat Fac Low Low Zio Pro Fac Low Low Dat Pro Fac Ext Cet Arc Hub Fac Upp Upp War Pro Res Tes Res Qua Sec Acc Com Distress Signals 24 | . . . 3 . 4 1 . . . . . . . . . 1 . 2 1 . . . . . . 1 2 3 . 4 1 1 Communications Jammed 276 | . . . . . . . . . . . 1 . . . . . . . . . 37 . . . 31 . 46 33 . 96 4 28 Distress Signals 255 | . . . . . . . . . . . 1 . . . . . . . . . 37 . . . 31 . 46 33 . 96 4 7 Times Spotted 695 | . 1 5 44 . 42 20 16 2 1 23 25 7 4 4 21 29 17 24 34 19 53 7 3 42 13 10 25 20 33 59 37 55 Peak Tracking Total 74 | . 1 3 7 . 4 4 10 1 1 6 6 1 4 2 5 4 3 10 2 11 5 4 3 20 2 2 5 5 6 14 20 74 Tactical Retreats 55 | . . . 1 . 6 1 . . . . 2 . . . 1 10 . 1 . . 3 1 . . 1 1 3 1 6 6 5 6 Traps | -11 -10 -10 -9 -9 -8 -7 -7 -7 -7 -6 -6 -6 -6 -6 -5 -5 -5 -5 -5 -5 -4 -4 -4 -4 -3 -3 -3 -2 -2 -2 -1 -1 ------- Run | Jun Mat Min Mat Min Mat Fac Low Low Zio Pro Fac Low Low Dat Pro Fac Ext Cet Arc Hub Fac Upp Upp War Pro Res Tes Res Qua Sec Acc Com Traps Triggered 21 | . . . 3 . . 1 . . . . . . . . . 6 2 . . . 2 . . . 1 . 1 . 3 . 1 1 Indirectly . | . . . . . . . . . . . . . . . . . . . . . . . . . . . . . . . . . Trap Hack Attempts . | . . . . . . . . . . . . . . . . . . . . . . . . . . . . . . . . . Triggered . | . . . . . . . . . . . . . . . . . . . . . . . . . . . . . . . . . Disarmed . | . . . . . . . . . . . . . . . . . . . . . . . . . . . . . . . . . Reprogrammed 34 | . . . . . . . . . . . . . . . . . 6 . . . 4 . . . . 18 6 . . . . . Reused 1 | . . . . . . . . . . . . . . . . . 1 . . . . . . . . . . . . . . . Traps Extracted . | . . . . . . . . . . . . . . . . . . . . . . . . . . . . . . . . . Installed . | . . . . . . . . . . . . . . . . . . . . . . . . . . . . . . . . . Triggered 13 | . . . . . . . . . . . . . . . . . 1 . . . . . 1 11 . . . . . . . . Machines | -11 -10 -10 -9 -9 -8 -7 -7 -7 -7 -6 -6 -6 -6 -6 -5 -5 -5 -5 -5 -5 -4 -4 -4 -4 -3 -3 -3 -2 -2 -2 -1 -1 ---------- Run | Jun Mat Min Mat Min Mat Fac Low Low Zio Pro Fac Low Low Dat Pro Fac Ext Cet Arc Hub Fac Upp Upp War Pro Res Tes Res Qua Sec Acc Com Machines Disabled 46 | . . . 4 1 1 . . . . 1 . . . 1 1 . . 2 1 2 2 . . 2 2 . 3 2 7 5 9 . Max in Single Turn 7 | . . . 4 1 1 . . . . 1 . . . 1 . . . . . . 1 . . . 1 . 1 1 1 1 7 . Garrison Access 13 | . . . . . 1 1 . . . . . . . . . 1 . . . 1 4 . . . . 1 . 1 1 . 2 . Network Hub 2 | . . . . . . . . . . . . . . . . . . . . 2 . . . . . . . . . . . . Machines Repaired 1 | . . . . . . . . . . . . . . . . . . . . 1 . . . . . . . . . . . . Machines Sabotaged . | . . . . . . . . . . . . . . . . . . . . . . . . . . . . . . . . . Overloaded Fab Kills . | . . . . . . . . . . . . . . . . . . . . . . . . . . . . . . . . . Hacking | -11 -10 -10 -9 -9 -8 -7 -7 -7 -7 -6 -6 -6 -6 -6 -5 -5 -5 -5 -5 -5 -4 -4 -4 -4 -3 -3 -3 -2 -2 -2 -1 -1 --------- Run | Jun Mat Min Mat Min Mat Fac Low Low Zio Pro Fac Low Low Dat Pro Fac Ext Cet Arc Hub Fac Upp Upp War Pro Res Tes Res Qua Sec Acc Com Machines Accessed 164 | . 1 1 8 . 13 13 2 1 1 1 10 . 1 4 . 9 11 . . 5 27 . . 8 1 9 9 4 11 5 7 2 Terminals 89 | . 1 . 4 . 8 5 1 1 . . 7 . 1 . . 3 11 . . 5 12 . . . . 6 5 1 7 5 4 2 Fabricators 11 | . . . . . . 3 . . . . 2 . . . . . . . . . 3 . . . 1 1 1 . . . . . Repair Stations 14 | . . . 1 . 1 . . . . . 1 . . . . 3 . . . . 3 . . . . . 2 . 2 . 1 . Recycling Units 10 | . . . 2 . 2 3 . . . . . . . . . 1 . . . . 2 . . . . . . . . . . . Scanalyzers 11 | . . . 1 . 1 1 . . . . . . . . . 1 . . . . 3 . . . . 1 1 1 1 . . . Garrison Access 13 | . . . . . 1 1 . . . . . . . . . 1 . . . . 4 . . . . 1 . 2 1 . 2 . Total Hacks 593 | . 4 1 23 . 35 37 4 1 2 1 35 . 2 29 . 41 51 . . 17 147 . . 9 2 40 29 11 29 18 17 8 Successful 346 | . 2 1 14 . 22 20 4 1 2 1 21 . 2 29 . 31 22 . . 12 81 . . 9 2 26 14 4 17 4 5 . Failed 245 | . 2 . 9 . 13 17 . . . . 14 . . . . 10 28 . . 5 66 . . . . 13 15 7 12 14 12 8 Catastrophic 41 | . . . . . 1 2 . . . . 2 . . . . 1 6 . . 2 11 . . . . 2 3 . 3 5 2 1 Database Lockouts 2 | . . . . . . . . . . . . . . . . . 1 . . . . . . . . 1 . . . . . . Manual 206 | . 4 . 19 . 17 16 . . . . 13 . . . . 12 27 1 . 9 58 . . 1 . 17 2 . 7 3 . . Terminals 368 | . 4 . 18 . 26 15 3 1 . . 21 . 2 . . 14 51 . . 17 89 . . . . 32 15 3 19 18 12 8 Fabricators 41 | . . . . . . 12 . . . . 6 . . . . . . . . . 15 . . . 2 2 4 . . . . . Repair Stations 62 | . . . 1 . 2 . . . . . 8 . . . . 17 . . . . 20 . . . . . 5 . 8 . 1 . Recycling Units 18 | . . . 2 . 2 5 . . . . . . . . . 1 . . . . 8 . . . . . . . . . . . Scanalyzers 40 | . . . 2 . 3 3 . . . . . . . . . 8 . . . . 10 . . . . 5 5 3 1 . . . Garrison Access 21 | . . . . . 2 2 . . . . . . . . . 1 . . . . 5 . . . . 1 . 5 1 . 4 . Terminal Hacks 180 | . . 1 5 . 8 3 4 1 2 1 5 . 2 29 . 5 19 . . 11 30 . . 9 . 18 9 1 8 4 5 . Record 33 | . . . . . . . 3 1 . 1 . . 2 11 . . . . . 1 1 . . 8 . 2 . . 2 1 . . Part Schematic 23 | . . . . . 1 1 . . 2 . 1 . . 11 . . 3 . . . 3 . . . . 1 . . . . . . Robot Schematic 4 | . . . . . . . . . . . . . . 4 . . . . . . . . . . . . . . . . . . Robot Analysis 14 | . . . 4 . 2 . . . . . . . . . . . 4 . . . 3 . . . . . 1 . . . . . Prototype ID Bank 8 | . . . . . . . . . . . . . . 3 . . 2 . . . 3 . . . . . . . . . . . Open Door 9 | . . 1 . . . . 1 . . . . . . . . . 2 . . . . . . 1 . . . . 1 . 3 . Level Access Points 2 | . . . . . . . . . . . . . . . . . . . . 1 . . . . . . . 1 . . . . Branch Access Points 6 | . . . . . 1 1 . . . . 1 . . . . 1 . . . . 1 . . . . 1 . . . . . . Emergency Access Points 3 | . . . . . . . . . . . . . . . . . . . . . . . . . . 1 1 . . 1 . . Machine Index 2 | . . . . . . . . . . . . . . . . . . . . . 1 . . . . . . . . . 1 . Terminal Index 8 | . . . . . . . . . . . 1 . . . . 1 1 . . 1 1 . . . . 1 1 . 1 . . . Fabricator Index 1 | . . . . . . . . . . . . . . . . 1 . . . . . . . . . . . . . . . . Alert Level 14 | . . . . . 1 . . . . . . . . . . 1 2 . . 1 4 . . . . 2 1 . 2 . . . Unreport Threat 9 | . . . . . 1 . . . . . . . . . . . 1 . . 1 2 . . . . 1 . . 2 1 . . Locate Traps 5 | . . . . . . . . . . . . . . . . . 1 . . 1 2 . . . . 1 . . . . . . Reprogram Traps 7 | . . . . . . . . . . . . . . . . . 1 . . . 1 . . . . 3 2 . . . . . Dispatch Records 2 | . . . . . . . . . . . . . . . . . . . . . 1 . . . . 1 . . . . . . Maintenance Status 1 | . . . . . . . . . . . . . . . . . . . . . . . . . . . . . . . 1 . Surveillance Status 1 | . . . . . . . . . . . . . . . . . . . . . . . . . . 1 . . . . . . Patrol Status 5 | . . . . . 1 . . . . . 1 . . . . . . . . 1 1 . . . . 1 . . . . . . Extermination Status 1 | . . . . . . . . . . . . . . . . . . . . . . . . . . . . . . 1 . . Recall Investigation 2 | . . . . . . . . . . . 1 . . . . . 1 . . . . . . . . . . . . . . . Recall Extermination 4 | . . . . . . . . . . . . . . . . 1 . . . . 2 . . . . . 1 . . . . . Hauler Manifests 3 | . . . 1 . . 1 . . . . . . . . . . . . . 1 . . . . . . . . . . . . Registered Components 1 | . . . . . . . . . . . . . . . . . . . . . 1 . . . . . . . . . . . Registered Prototypes 1 | . . . . . . . . . . . . . . . . . . . . . 1 . . . . . . . . . . . Zone Layout 11 | . . . . . 1 . . . . . . . . . . . 1 . . 3 2 . . . . 2 2 . . . . . Fabricator Hacks 23 | . . . . . . 7 . . . . 4 . . . . . . . . . 6 . . . 2 2 2 . . . . . Network Status 1 | . . . . . . 1 . . . . . . . . . . . . . . . . . . . . . . . . . . Load Schematic 11 | . . . . . . 3 . . . . 2 . . . . . . . . . 3 . . . 1 1 1 . . . . . Build 11 | . . . . . . 3 . . . . 2 . . . . . . . . . 3 . . . 1 1 1 . . . . . Repair Station Hacks 47 | . . . . . 2 . . . . . 8 . . . . 13 . . . . 18 . . . . . 1 . 5 . . . Scan Component 25 | . . . . . 1 . . . . . 4 . . . . 7 . . . . 9 . . . . . 1 . 3 . . . Repair 22 | . . . . . 1 . . . . . 4 . . . . 6 . . . . 9 . . . . . . . 2 . . . Recycling Unit Hacks . | . . . . . . . . . . . . . . . . . . . . . . . . . . . . . . . . . Scanalyzer 28 | . . . 1 . 3 1 . . . . . . . . . 8 . . . . 8 . . . . 3 2 2 . . . . Insert Component 14 | . . . 1 . 2 1 . . . . . . . . . 3 . . . . 4 . . . . 1 1 1 . . . . Analyze 14 | . . . . . 1 . . . . . . . . . . 5 . . . . 4 . . . . 2 1 1 . . . . Garrison Access Hacks 10 | . . . . . 1 1 . . . . . . . . . 1 . . . . 4 . . . . 1 . 1 1 . . . Seal Access 10 | . . . . . 1 1 . . . . . . . . . 1 . . . . 4 . . . . 1 . 1 1 . . . Unauthorized Hacks 58 | . 2 . 8 . 8 8 . . . . 4 . . . . 4 3 . . 1 15 . . . . 2 . . 3 . . . Terminals 42 | . 2 . 5 . 6 3 . . . . 4 . . . . 2 3 . . 1 12 . . . . 2 . . 2 . . . Track 3 | . . . . . . . . . . . 1 . . . . . . . . . 2 . . . . . . . . . . . Assimilate 9 | . . . 1 . 1 1 . . . . 2 . . . . 1 . . . . 1 . . . . 2 . . . . . . Botnet 20 | . 1 . 3 . 3 1 . . . . . . . . . 1 2 . . . 8 . . . . . . . 1 . . . Operators 9 | . 1 . 1 . 2 1 . . . . 1 . . . . . 1 . . . 1 . . . . . . . 1 . . . Sabotage 1 | . . . . . . . . . . . . . . . . . . . . 1 . . . . . . . . . . . . Fabricators 2 | . . . . . . 2 . . . . . . . . . . . . . . . . . . . . . . . . . . Report 1 | . . . . . . 1 . . . . . . . . . . . . . . . . . . . . . . . . . . Haulers 1 | . . . . . . 1 . . . . . . . . . . . . . . . . . . . . . . . . . . Repair Stations 2 | . . . 1 . . . . . . . . . . . . 1 . . . . . . . . . . . . . . . . Mechanics 2 | . . . 1 . . . . . . . . . . . . 1 . . . . . . . . . . . . . . . . Recycling Units 11 | . . . 2 . 2 3 . . . . . . . . . 1 . . . . 3 . . . . . . . . . . . Recyclers 1 | . . . . . . . . . . . . . . . . . . . . . 1 . . . . . . . . . . . Mask 1 | . . . . . . . . . . . . . . . . . . . . . 1 . . . . . . . . . . . Tunnel 9 | . . . 2 . 2 3 . . . . . . . . . 1 . . . . 1 . . . . . . . . . . . Scanalyzers 1 | . . . . . . . . . . . . . . . . . . . . . . . . . . . . . 1 . . . Researchers 1 | . . . . . . . . . . . . . . . . . . . . . . . . . . . . . 1 . . . Garrison Access . | . . . . . . . . . . . . . . . . . . . . . . . . . . . . . . . . . Data Cores Recovered 3 | . . . . . 1 . . . . . . . . . . . 2 . . . . . . . . . . . . . . . Used 1 | . . . . . . . . . . . . . . . . . 1 . . . . . . . . . . . . . . . Hacking Detections 107 | . 1 . 5 . 9 11 1 . . . 10 . . . . 5 9 1 . 4 17 . . . 1 8 7 3 4 4 5 2 Full Trace Events 25 | . . . . . . 7 1 . . . 5 . . . . 1 1 . . . 3 . . . 1 2 1 . . . 1 2 Feedback Events . | . . . . . . . . . . . . . . . . . . . . . . . . . . . . . . . . . Feedback Blocked 1 | . . . . . . . . . . . . . . . . 1 . . . . . . . . . . . . . . . . Robot Schematics Acquired 4 | . . . . . . . . . . . . . . 4 . . . . . . . . . . . . . . . . . . Robots Built 1 | . . . . . . 1 . . . . . . . . . . . . . . . . . . . . . . . . . . Authchips . | . . . . . . . . . . . . . . . . . . . . . . . . . . . . . . . . . Time 116 | . . . . . . 116 . . . . . . . . . . . . . . . . . . . . . . . . . . Total Robot Build Rating 3 | . . . . . . 3 . . . . . . . . . . . . . . . . . . . . . . . . . . Part Schematics Acquired 30 | . . . . . 2 1 . . 2 . 1 . . 11 . 3 3 . . . 5 . . . . 1 . 1 . . . . Parts Built 16 | . . . . . . 4 . . . . 2 . . . . . . . . . 5 . . . 2 2 1 . . . . . Authchips . | . . . . . . . . . . . . . . . . . . . . . . . . . . . . . . . . . Time 587 | . . . . . . 168 . . . . 116 . . . . . . . . . 153 . . . 58 39 53 . . . . . Total Part Build Rating 98 | . . . . . . 16 . . . . 14 . . . . . . . . . 34 . . . 14 14 6 . . . . . Parts Repaired 21 | . . . . . 1 . . . . . 4 . . . . 5 . . . . 9 . . . . . . . 2 . . . Time 1266 | . . . . . 38 . . . . . 202 . . . . 244 . . . . 685 . . . . . . . 97 . . . Parts Recycled . | . . . . . . . . . . . . . . . . . . . . . . . . . . . . . . . . . Recycled Matter . | . . . . . . . . . . . . . . . . . . . . . . . . . . . . . . . . . Retrieved Matter . | . . . . . . . . . . . . . . . . . . . . . . . . . . . . . . . . . Retrieved Components . | . . . . . . . . . . . . . . . . . . . . . . . . . . . . . . . . . Parts Scanalyzed 11 | . . . 1 . 1 1 . . . . . . . . . 3 . . . . 3 . . . . 1 . 1 . . . . Part Schematics Acquired 8 | . . . . . 1 . . . . . . . . . . 3 . . . . 3 . . . . . . 1 . . . . Parts Damaged 1 | . . . . . . . . . . . . . . . . . . . . . 1 . . . . . . . . . . . Bothacking | -11 -10 -10 -9 -9 -8 -7 -7 -7 -7 -6 -6 -6 -6 -6 -5 -5 -5 -5 -5 -5 -4 -4 -4 -4 -3 -3 -3 -2 -2 -2 -1 -1 ------------ Run | Jun Mat Min Mat Min Mat Fac Low Low Zio Pro Fac Low Low Dat Pro Fac Ext Cet Arc Hub Fac Upp Upp War Pro Res Tes Res Qua Sec Acc Com Used RIF Installer . | . . . . . . . . . . . . . . . . . . . . . . . . . . . . . . . . . Robots Hacked 6 | . . . . . . 1 . . . . . . . . . 2 . 1 1 1 . . . . . . . . . . . . Non-combat 4 | . . . . . . 1 . . . . . . . . . 2 . . 1 . . . . . . . . . . . . . Combat 2 | . . . . . . . . . . . . . . . . . . 1 . 1 . . . . . . . . . . . . Robot Hacks Applied 7 | . . . . . . 1 . . . . . . . . . 2 . 1 2 1 . . . . . . . . . . . . parse_system 2 | . . . . . . . . . . . . . . . . . . 1 . 1 . . . . . . . . . . . . find_chute 2 | . . . . . . 1 . . . . . . . . . 1 . . . . . . . . . . . . . . . . find_fabricator 1 | . . . . . . . . . . . . . . . . 1 . . . . . . . . . . . . . . . . check_alert 2 | . . . . . . . . . . . . . . . . . . . 2 . . . . . . . . . . . . . Relay Couplers Released 5 | . . . . . . . . . . . . . . . . . . . . 3 . . . . . . . . . . 2 . Machine Destruction 5 | . . . . . . . . . . . . . . . . . . . . 3 . . . . . . . . . . 2 . Fabnet Peak Effective % . | . . . . . . . . . . . . . . . . . . . . . . . . . . . . . . . . . Robots Rewired 23 | . . . . . . . . . . 1 . . . . 1 . 10 . . . . . . 5 6 . . . . . . . Allies Hacked . | . . . . . . . . . . . . . . . . . . . . . . . . . . . . . . . . . Hacks Repelled . | . . . . . . . . . . . . . . . . . . . . . . . . . . . . . . . . . Allies | -11 -10 -10 -9 -9 -8 -7 -7 -7 -7 -6 -6 -6 -6 -6 -5 -5 -5 -5 -5 -5 -4 -4 -4 -4 -3 -3 -3 -2 -2 -2 -1 -1 -------- Run | Jun Mat Min Mat Min Mat Fac Low Low Zio Pro Fac Low Low Dat Pro Fac Ext Cet Arc Hub Fac Upp Upp War Pro Res Tes Res Qua Sec Acc Com Total Allies 46 | . . . 1 3 . 2 . . . 1 1 . . . 1 1 13 5 . . 1 . . 5 6 2 . . . . . 4 Largest Group 10 | . . . 1 3 . 2 1 . . 1 1 . . . 1 1 10 10 5 4 1 . . 5 6 5 . . . . . 4 Highest-Rated Group 480 | . . . 10 40 . 33 23 . . 20 10 . . . 49 26 398 480 480 384 96 . . 307 356 280 . . . . . 56 Highest-Rated Ally 159 | . . . 10 16 . 23 23 . . 20 10 . . . 49 26 159 145 96 96 96 . . 65 64 64 . . . . . 15 Total Orders 32 | . . . 1 . . 10 1 . . . . . . . . 1 2 . 2 4 2 . . 3 4 2 . . . . . . STAY 14 | . . . 1 . . 3 1 . . . . . . . . 1 1 . 1 2 1 . . . 2 1 . . . . . . FOLLOW 12 | . . . . . . 4 . . . . . . . . . . 1 . 1 2 1 . . . 2 1 . . . . . . AID 6 | . . . . . . 3 . . . . . . . . . . . . . . . . . 3 . . . . . . . . Ally Attacks 314 | . . . . . . . . . . . . . . . 3 . 39 82 31 62 1 . . 17 54 25 . . . . . . Total Damage 12857 | . . . . . . . . . . . . . . . 148 . 1146 3135 1166 3441 43 . . 803 1972 1003 . . . . . . Kills 64 | . . . . . . . . . . . . . . . 1 . 10 16 4 15 . . . 2 12 4 . . . . . . Allies Corrupted . | . . . . . . . . . . . . . . . . . . . . . . . . . . . . . . . . . Allies Melted 1 | . . . . . . . . . . . . . . . . . 1 . . . . . . . . . . . . . . . Intel | -11 -10 -10 -9 -9 -8 -7 -7 -7 -7 -6 -6 -6 -6 -6 -5 -5 -5 -5 -5 -5 -4 -4 -4 -4 -3 -3 -3 -2 -2 -2 -1 -1 ------- Run | Jun Mat Min Mat Min Mat Fac Low Low Zio Pro Fac Low Low Dat Pro Fac Ext Cet Arc Hub Fac Upp Upp War Pro Res Tes Res Qua Sec Acc Com Robot Analysis Total 14 | . . . 4 . 2 . . . . . . . . . . . 4 . . . 3 . . . . . 1 . . . . . Derelict Logs Recovered 17 | . . 3 . 1 . . 3 3 2 . . 1 1 . 2 . . . . . . 1 . . . . . . . . . . Drone Launches . | . . . . . . . . . . . . . . . . . . . . . . . . . . . . . . . . . Drone Recoveries . | . . . . . . . . . . . . . . . . . . . . . . . . . . . . . . . . . Exploration | -11 -10 -10 -9 -9 -8 -7 -7 -7 -7 -6 -6 -6 -6 -6 -5 -5 -5 -5 -5 -5 -4 -4 -4 -4 -3 -3 -3 -2 -2 -2 -1 -1 ------------- Run | Jun Mat Min Mat Min Mat Fac Low Low Zio Pro Fac Low Low Dat Pro Fac Ext Cet Arc Hub Fac Upp Upp War Pro Res Tes Res Qua Sec Acc Com Turns Passed 37439 | 107 59 606 1675 272 2407 2311 1062 1332 1248 1626 2244 845 742 482 822 2077 1068 456 1158 526 3200 868 569 953 876 576 1739 813 2446 1246 487 541 Spaces Moved 19913 | 21 46 481 786 187 1199 1181 503 584 906 597 890 641 589 224 396 990 552 217 217 349 1568 622 377 651 536 425 1001 596 1109 645 338 489 Core 7 | . . . 7 . . . . . . . . . . . . . . . . . . . . . . . . . . . . . Treads . | . . . . . . . . . . . . . . . . . . . . . . . . . . . . . . . . . Legs 19219 | 21 46 481 779 91 922 1181 503 584 906 597 890 641 589 224 396 990 552 217 217 349 1568 622 377 651 536 425 1001 596 1109 622 326 210 Wheels 373 | . . . . 96 277 . . . . . . . . . . . . . . . . . . . . . . . . . . . Hover . | . . . . . . . . . . . . . . . . . . . . . . . . . . . . . . . . . Flight . | . . . . . . . . . . . . . . . . . . . . . . . . . . . . . . . . . Fastest Speed 80 | 120 120 120 120 80 97 114 120 190 124 124 110 120 120 120 120 120 120 120 120 120 120 120 120 110 110 110 110 110 112 118 116 110 Average Speed 131 | 120 120 120 136 112 128 137 185 190 133 242 158 120 120 120 120 120 120 120 120 120 124 120 120 117 110 110 110 111 129 125 119 114 Slowest Speed 265 | 120 120 120 260 190 260 190 260 190 190 265 265 120 120 120 120 120 120 120 120 120 260 120 120 120 110 110 110 112 190 190 120 183 Overloaded Moves . | . . . . . . . . . . . . . . . . . . . . . . . . . . . . . . . . . Propulsion Burnouts . | . . . . . . . . . . . . . . . . . . . . . . . . . . . . . . . . . Robots Hopped . | . . . . . . . . . . . . . . . . . . . . . . . . . . . . . . . . . Cave-ins Triggered 12 | . . . . . . . . . . . . . . . . . . . . . . . . . . . . . . . 1 11 Microwarps 27 | . . . . . . . . . . . . . . . . . . . . . . . . . . . . . . 1 2 24 Exploration Rate (%) 53 | 3 9 93 60 42 62 24 66 74 83 71 18 94 80 81 62 19 66 62 78 33 35 81 61 89 66 17 93 23 68 32 16 15 Regions Visited 32 Branch Regions 22 Pre-discovered Areas 16 | . . . 2 . 2 3 1 1 2 . . 1 . 1 1 1 . . . . 1 . . . . . . . . . . . Known Exits Taken 24 | . . . 1 . . 1 1 . . . 1 1 1 1 1 1 1 1 1 1 1 1 1 1 1 1 1 1 1 1 1 . Unknown Exits Taken 8 | 1 1 1 . 1 1 . . 1 1 1 . . . . . . . . . . . . . . . . . . . . . . Scrap Searched 26 | . . 2 . . . . 2 3 3 1 . 3 5 . 3 . . . . . . 3 1 . . . . . . . . . Spaces Dug 547 | . . 11 10 2 47 22 1 1 . 62 38 77 1 . . 10 47 . . 4 33 1 1 1 4 6 27 6 15 19 15 86 Terrain Destroyed 1910 | . . 51 32 17 81 22 59 1 . 211 38 136 88 . 115 10 93 131 3 4 64 30 1 65 74 6 27 63 21 46 317 104 Melee 296 | . . . 3 2 18 22 1 1 . 1 38 . 1 . . 10 3 . . 4 31 1 1 1 4 6 27 6 13 17 15 70 Projectile 94 | . . . 12 . 7 . . . . . . . . . . . . . . . 4 . . . . . . . 8 29 . 34 AOE 1517 | . . 51 17 15 56 . 58 . . 210 . 136 87 . 115 . 90 131 . . 29 29 . 64 70 . . 57 . . 302 . Terrain Rammed . | . . . . . . . . . . . . . . . . . . . . . . . . . . . . . . . . . Walls Destroyed . | . . . . . . . . . . . . . . . . . . . . . . . . . . . . . . . . . Machines Disabled . | . . . . . . . . . . . . . . . . . . . . . . . . . . . . . . . . . Actions | -11 -10 -10 -9 -9 -8 -7 -7 -7 -7 -6 -6 -6 -6 -6 -5 -5 -5 -5 -5 -5 -4 -4 -4 -4 -3 -3 -3 -2 -2 -2 -1 -1 --------- Run | Jun Mat Min Mat Min Mat Fac Low Low Zio Pro Fac Low Low Dat Pro Fac Ext Cet Arc Hub Fac Upp Upp War Pro Res Tes Res Qua Sec Acc Com Total 28820 | 72 48 502 1166 239 1874 1688 582 798 937 730 1592 699 619 364 699 1808 903 385 1029 435 2530 730 481 833 747 513 1529 705 1925 905 390 363 Wait 6137 | 23 . . 201 39 449 315 34 193 2 69 523 26 22 51 252 718 229 118 712 53 632 85 93 107 78 57 391 41 556 59 9 . Move 19589 | 20 45 480 785 186 1198 1180 502 583 905 596 889 640 588 223 395 989 551 216 216 349 1567 621 376 650 535 425 1000 595 1108 622 327 227 Hop . | . . . . . . . . . . . . . . . . . . . . . . . . . . . . . . . . . Pick Up 227 | 3 2 4 13 . 18 18 2 4 9 2 26 4 2 11 1 7 8 8 4 1 22 4 1 2 6 3 5 7 15 11 2 2 Fast Attach 173 | . . . 10 5 15 6 2 2 1 3 9 . . 6 1 4 2 4 2 5 22 . 1 7 1 5 13 5 19 15 4 4 Attach 155 | 1 . 1 7 1 10 8 4 3 . 5 10 6 . 9 . 6 3 5 1 . 19 3 . 3 4 2 2 2 14 11 8 7 Detach 84 | . . 1 3 1 8 5 . 3 . 2 3 5 . 2 . 1 1 3 . . 12 . . 3 3 2 3 2 7 7 5 2 Swap 435 | . . 3 16 2 48 35 14 1 1 14 17 12 2 5 15 38 15 8 5 7 46 5 2 7 13 2 22 15 42 16 6 1 Drop 271 | 5 . 3 17 1 16 20 . 3 11 2 25 . 1 9 3 7 8 7 4 6 26 5 2 13 2 5 15 9 24 16 6 . Fire 316 | 16 1 7 25 . 14 . 6 . . 11 . 3 2 2 7 2 2 6 85 1 15 1 . 2 3 . . 4 33 31 1 36 Melee 1243 | . . . 89 4 97 101 18 6 8 10 88 3 2 46 15 36 30 10 . 13 167 6 6 1 54 12 78 25 107 114 21 76 Ram . | . . . . . . . . . . . . . . . . . . . . . . . . . . . . . . . . . Kick 19 | 4 . 3 . . 1 . . . . . 2 . . . . . . . . . 2 . . . 2 . . . . 3 1 1 Crush . | . . . . . . . . . . . . . . . . . . . . . . . . . . . . . . . . . Escape Stasis 7 | . . . . . . . . . . . . . . . . . . . . . . . . . . . . . . . . 7 Rewire 164 | . . . . . . . . . . 16 . . . . 10 . 54 . . . . . . 38 46 . . . . . . . Trap . | . . . . . . . . . . . . . . . . . . . . . . . . . . . . . . . . . Miscellaneous . | . . . . . . . . . . . . . . . . . . . . . . . . . . . . . . . . . Route ------- -11/Junkyard -10/Materials -10/Mines (discovered 2 exits: *Mat x2) -9/Materials (discovered 6 exits: *Mat x2 / *Min x2 / [*Sto x2]) -9/Mines (discovered 2 exits: *Mat / [*Exi]) -8/Materials -7/Factory (discovered 2 exits: *Low x2) -7/Lower Caves -7/Lower Caves (discovered 2 exits: *Fac / *Zio) -7/Zion -6/Proximity Caves -6/Factory (discovered 3 exits: *Fac / *Low x2) -6/Lower Caves -6/Lower Caves (discovered 2 exits: *Fac / *Dat) -6/Data Miner -5/Proximity Caves -5/Factory (discovered 5 exits: *Fac / *Upp x2 / *Ext x2) -5/Extension (discovered 2 exits: *Fac / *Cet) -5/Cetus (discovered 2 exits: *Fac / *Arc) -5/Archives (discovered 2 exits: *Fac / *Hub) -5/Hub_04(d) (discovered 4 exits: *Fac x4) -4/Factory (discovered 4 exits: *Res / *Upp x2 / Arm) -4/Upper Caves (discovered 2 exits: *Upp / *War) -4/Upper Caves -4/Warlord -3/Proximity Caves -3/Research (discovered 2 exits: *Tes x2) -3/Testing -2/Research (discovered 4 exits: Acc x3 / *Qua) -2/Quarantine (discovered 2 exits: *Acc / *Sec) -2/Section 7 -1/Access -1/Command History --------- Turn | Location | Event 4 | -11/Junkyard | Discovered new exit (range 3) 108 | -11/Junkyard | Entered Materials 118 | -10/Materials | Discovered new exit (range 15) 167 | -10/Materials | Entered Mines 169 | -10/Mines | Discovered new exit (range 9) 242 | -10/Mines | Learned Materials garrison access intel 303 | -10/Mines | Build established: Mutant 308 | -10/Mines | Learned 2 Materials zone layouts 386 | -10/Mines | Found a damaged Exp. Sensor Array with a note attached 388 | -10/Mines | Found Prototype Device 415 | -10/Mines | Learned Materials terminal intel 451 | -10/Mines | Met a Derelict who couldn't figure out how to use a Trap Extractor 580 | -10/Mines | Discovered new exit (range 8) 624 | -10/Mines | Received a Rocket Launcher from a helpful Derelict 773 | -10/Mines | Entered Materials 773 | -9/Materials | Evolved 2 slots: Propulsion x1, Utility x1 774 | -9/Materials | Identified exit to Mines 775 | -9/Materials | Loaded intel: 12 terminal locations 970 | -9/Materials | Identified Exp. Sensor Array 1039 | -9/Materials | Discovered new exit (range 16) 1772 | -9/Materials | Discovered new exit (range 6) 1828 | -9/Materials | Discovered new exit (range 7) 1930 | -9/Materials | Discovered new exit (range 9) 2049 | -9/Materials | Core integrity fell below 50% 2079 | -9/Materials | Destroyed 7 combat bots 2087 | -9/Materials | Lost 3 parts (1p1n1u) 2208 | -9/Materials | Lost 3 parts (2n1w) 2341 | -9/Materials | Discovered exit to Mines (range 8) 2373 | -9/Materials | First assault squad dispatched 2448 | -9/Materials | Entered Mines 2498 | -9/Mines | Deemed a non-threat by the Exiles lab entrance 2500 | -9/Mines | Discovered new exit (range 5) 2553 | -9/Mines | Met a Derelict bent on vengeance 2557 | -9/Mines | Assisted by bots powering up and referring to "LRC-V3" 2644 | -9/Mines | Core integrity fell below 20% 2677 | -9/Mines | Learned Materials interactive machine intel 2686 | -9/Mines | Discovered new exit (range 14) 2713 | -9/Mines | Assembled infested the area 2718 | -9/Mines | Assisted by a Guerilla fighting off Assembled 2720 | -9/Mines | Entered Materials 2720 | -8/Materials | Evolved 2 slots: Propulsion x1, Utility x1 2721 | -8/Materials | Loaded intel: 16 interactive machine locations 2722 | -8/Materials | Loaded intel: 1 garrison access location 3260 | -8/Materials | Lost 6 parts (1p3n2u) 3282 | -8/Materials | Core integrity fell below 50% 3399 | -8/Materials | Repaired Imp. Utility Shielding 3607 | -8/Materials | Build established: Scavenger-Mutant 3755 | -8/Materials | Discovered new exit (range 13) 5127 | -8/Materials | Entered Factory 5127 | -7/Factory | Evolved 2 slots: Propulsion x1, Utility x1 5656 | -7/Factory | Found Prototype Launcher 5656 | -7/Factory | Identified Rocket Array 5749 | -7/Factory | Found Rocket Array 5803 | -7/Factory | Identified exit to Lower Caves 5930 | -7/Factory | Fabricated M-28 Smith (x1) 6521 | -7/Factory | Fabricated Powered Armor (x2) 6747 | -7/Factory | Build established: Mutant 6806 | -7/Factory | Fabricated Powered Armor (x2) 7438 | -7/Factory | Entered Lower Caves 7438 | -7/Lower Caves | Accompanied by 1 ally 7450 | -7/Lower Caves | Identified exit to Lower Caves 7568 | -7/Lower Caves | Destroyed 9 combat bots 7596 | -7/Lower Caves | Lost 3 parts (2n1u) 7696 | -7/Lower Caves | Attracted the attention of an 0b10 base 8338 | -7/Lower Caves | Encountered a Warlord checkpoint 8500 | -7/Lower Caves | Entered another Lower Caves area 8501 | -7/Lower Caves | Encountered a Warlord checkpoint 8568 | -7/Lower Caves | Discovered new exit (range 9) 8574 | -7/Lower Caves | Spotted B-75 Beast 8723 | -7/Lower Caves | Learned Factory security intel 8740 | -7/Lower Caves | Learned Factory emergency access door positions 9804 | -7/Lower Caves | Discovered new exit (range 13) 9832 | -7/Lower Caves | Entered Zion 9971 | -7/Zion | Discovered new exit (range 12) 10702 | -7/Zion | Given A8's code to call for help 10718 | -7/Zion | Received a visual enhancement algorithm 10902 | -7/Zion | Build established: Derelict-Mutant 11080 | -7/Zion | Entered Proximity Caves 11162 | -6/Proximity Caves | Attracted the attention of an 0b10 outpost 11184 | -6/Proximity Caves | Destroyed 7 combat bots 11841 | -6/Proximity Caves | Attracted the attention of an 0b10 checkpoint 12194 | -6/Proximity Caves | Found Alien Artifact 12552 | -6/Proximity Caves | Discovered new exit (range 8) 12706 | -6/Proximity Caves | Entered Factory 12706 | -6/Factory | Evolved 2 slots: Utility x2 13098 | -6/Factory | Identified exit to Lower Caves 13543 | -6/Factory | Lost 3 parts (1n1u1w) 13843 | -6/Factory | Build established: Scavenger-Mutant 14193 | -6/Factory | Build established: Derelict-Mutant 14373 | -6/Factory | Discovered new exit (range 15) 14532 | -6/Factory | Repaired Powered Armor 14577 | -6/Factory | Repaired Powered Armor 14622 | -6/Factory | Repaired Med. Reactive Plating 14693 | -6/Factory | Repaired Rocket Array 14716 | -6/Factory | Build established: Hacker-Mutant 14869 | -6/Factory | Fabricated Myomer Leg (x2) 14950 | -6/Factory | Entered Lower Caves 15519 | -6/Lower Caves | Build established: Derelict-Mutant 15533 | -6/Lower Caves | Spotted B-75 Beast 15637 | -6/Lower Caves | Destroyed B-75 Beast 15765 | -6/Lower Caves | Discovered new exit (range 6) 15771 | -6/Lower Caves | Identified exit to Lower Caves 15795 | -6/Lower Caves | Entered another Lower Caves area 15811 | -6/Lower Caves | Discovered new exit (range 15) 15850 | -6/Lower Caves | Identified exit to Factory 15996 | -6/Lower Caves | Discovered new exit (range 15) 16187 | -6/Lower Caves | Encountered a Warlord checkpoint 16297 | -6/Lower Caves | Learned location of 1 exit from Factory 16535 | -6/Lower Caves | Identified exit to Data Miner 16537 | -6/Lower Caves | Entered Data Miner 16537 | -6/Data Miner | Discovered new exit (range 6) 16560 | -6/Data Miner | Met Data Miner 16582 | -6/Data Miner | Learned location of Section 7 (-2) 16582 | -6/Data Miner | Acquired the access code to Warlord's prototype stash 16605 | -6/Data Miner | Received God Mode back door access code from Data Miner 16648 | -6/Data Miner | Destroyed Data Miner 16652 | -6/Data Miner | Data Conduit disabled 16854 | -6/Data Miner | Found Prototype Device 16854 | -6/Data Miner | Identified Exp. Thermal Shield 16862 | -6/Data Miner | Lost 4 parts (1n2u1w) 16872 | -6/Data Miner | Found Prototype Hackware 16874 | -6/Data Miner | Found Prototype Hackware 16991 | -6/Data Miner | Identified exit to Proximity Caves 17019 | -6/Data Miner | Entered Proximity Caves 17078 | -5/Proximity Caves | Build established: Scavenger-Mutant 17159 | -5/Proximity Caves | Learned 4 Factory zone layouts 17172 | -5/Proximity Caves | Attracted the attention of an 0b10 outpost 17802 | -5/Proximity Caves | Discovered exit to Factory (range 14) 17841 | -5/Proximity Caves | Entered Factory 17841 | -5/Factory | Evolved 2 slots: Power x1, Utility x1 17842 | -5/Factory | Identified exit to Upper Caves 17843 | -5/Factory | Identified exit to Factory 17893 | -5/Factory | Identified Deep Network Scanner 17895 | -5/Factory | Identified Ghost Barrier 17915 | -5/Factory | Repaired Imp. Utility Shielding 17943 | -5/Factory | Repaired Lyr. Medium Armor Plating 17988 | -5/Factory | Repaired Enh. Flexi-carbon Leg 18231 | -5/Factory | Build established: Hacker-Mutant 18550 | -5/Factory | Repaired Antimatter Reactor 18597 | -5/Factory | Repaired Powered Armor 18807 | -5/Factory | Identified exit to Extension 19252 | -5/Factory | Build established: Hacker-Assassin 19918 | -5/Factory | Entered Extension 19991 | -5/Extension | Central database locked down 20282 | -5/Extension | Rescued A7 20452 | -5/Extension | Rescued a captive Derelict 20453 | -5/Extension | Rescued a captive Derelict 20561 | -5/Extension | Build established: Hacker-Mutant 20961 | -5/Extension | Discovered exit to Factory (range 10) 20962 | -5/Extension | Discovered new exit (range 6) 20968 | -5/Extension | Identified exit to Cetus 20986 | -5/Extension | Entered Cetus 20986 | -5/Cetus | Accompanied by 10 allies (A7) 20991 | -5/Cetus | Acquired a Cetus Manufacturing Module code from A7 21003 | -5/Cetus | Spotted Cetus Guard 21003 | -5/Cetus | Spotted Cetus Guard 21004 | -5/Cetus | Spotted Cetus Guard 21011 | -5/Cetus | Spotted Cetus Guard 21012 | -5/Cetus | Allies destroyed Cetus Guard 21014 | -5/Cetus | Allies destroyed Cetus Guard 21023 | -5/Cetus | Allies destroyed Cetus Guard 21035 | -5/Cetus | Allies destroyed Cetus Guard 21094 | -5/Cetus | Destroyed 8 combat bots 21100 | -5/Cetus | Found Prototype Protection 21100 | -5/Cetus | Identified Med. Regenerative Plating 21160 | -5/Cetus | Started Cetus Manufacturing Module 21185 | -5/Cetus | Manufactured an Enhanced Grunt 21210 | -5/Cetus | Manufactured an Enhanced Grunt 21235 | -5/Cetus | Manufactured an Enhanced Grunt 21260 | -5/Cetus | Manufactured an Enhanced Grunt 21285 | -5/Cetus | Manufactured an Enhanced Grunt 21303 | -5/Cetus | Cetus Manufacturing Module disabled 21333 | -5/Cetus | Discovered new exit (range 16) 21362 | -5/Cetus | Spotted Cetus Guard 21362 | -5/Cetus | Spotted Cetus Guard 21365 | -5/Cetus | Spotted Cetus Guard 21365 | -5/Cetus | Spotted Cetus Guard 21369 | -5/Cetus | Discovered exit to Factory (range 15) 21373 | -5/Cetus | Allies destroyed Cetus Guard 21381 | -5/Cetus | Allies destroyed Cetus Guard 21382 | -5/Cetus | Allies destroyed Cetus Guard 21385 | -5/Cetus | Allies destroyed Cetus Guard 21387 | -5/Cetus | Met Revision 17 21414 | -5/Cetus | Build established: Scavenger-Mutant 21438 | -5/Cetus | Identified exit to Archives 21442 | -5/Cetus | Entered Archives 21442 | -5/Archives | Accompanied by 5 allies 21758 | -5/Archives | Discovered new exit (range 15) 21864 | -5/Archives | Discovered exit to Factory (range 14) 22587 | -5/Archives | Identified exit to Hub_04(d) 22600 | -5/Archives | Entered Hub_04(d) 22600 | -5/Hub_04(d) | Accompanied by 4 allies 22773 | -5/Hub_04(d) | Spotted B-75 Beast 23100 | -5/Hub_04(d) | Build established: Hacker-Mutant 23111 | -5/Hub_04(d) | Network Hub disabled 23111 | -5/Hub_04(d) | Network Hub disabled 23113 | -5/Hub_04(d) | Spotted Lightning 23114 | -5/Hub_04(d) | Spotted Lightning 23118 | -5/Hub_04(d) | Spotted Lightning 23118 | -5/Hub_04(d) | Spotted Lightning 23118 | -5/Hub_04(d) | Spotted Lightning 23118 | -5/Hub_04(d) | Spotted Lightning 23126 | -5/Hub_04(d) | Entered Factory 23126 | -4/Factory | Accompanied by 1 ally 23126 | -4/Factory | Evolved 2 slots: Utility x2 23142 | -4/Factory | Identified exit to Upper Caves 23142 | -4/Factory | Identified exit to Armory 23618 | -4/Factory | Fabricated Enh. Flexi-carbon Leg (x1) 24445 | -4/Factory | Fabricated Myomer Leg (x2) 24499 | -4/Factory | Lost 3 parts (1p2n) 24785 | -4/Factory | Build established: Scavenger-Mutant 24968 | -4/Factory | Found Prototype Processor 25024 | -4/Factory | Identified Exp. Signal Interpreter 25060 | -4/Factory | Repaired Centrium Medium Armor Plating 25106 | -4/Factory | Repaired Med. Reactive Plating 25219 | -4/Factory | Repaired Centrium Medium Armor Plating 25252 | -4/Factory | Repaired Enh. Flexi-carbon Leg? 25259 | -4/Factory | Repaired Imp. Utility Shielding 25301 | -4/Factory | Build established: Hacker-Mutant 25312 | -4/Factory | Found Prototype Launcher 25312 | -4/Factory | Identified Com. Tesla Bomb Launcher 25367 | -4/Factory | Repaired Centrium Medium Armor Plating? 25379 | -4/Factory | Repaired Quantum Reactor 25641 | -4/Factory | Repaired Myomer Leg 25787 | -4/Factory | Repaired Centrium Medium Armor Plating? 25916 | -4/Factory | Discovered new exit (range 4) 26177 | -4/Factory | Fabricated Myomer Leg? 26326 | -4/Factory | Entered Upper Caves 26329 | -4/Upper Caves | A Derelict revealed a hidden shortcut to "reach the base" 26357 | -4/Upper Caves | Build established: Scavenger-Gladiator 27079 | -4/Upper Caves | Learned 4 Research zone layouts 27191 | -4/Upper Caves | Discovered new exit (range 3) 27193 | -4/Upper Caves | Identified exit to Upper Caves 27194 | -4/Upper Caves | Entered another Upper Caves area 27196 | -4/Upper Caves | Attracted the attention of an 0b10 checkpoint 27638 | -4/Upper Caves | Discovered new exit (range 16) 27762 | -4/Upper Caves | Identified exit to Warlord 27763 | -4/Upper Caves | Entered Warlord 27794 | -4/Warlord | Build established: Gladiator 27803 | -4/Warlord | System corruption cleaned by Quarantine Array 28174 | -4/Warlord | Build established: Commander-Mutant 28226 | -4/Warlord | Visited the Vortex Lab 28240 | -4/Warlord | Warlord's base attacked by MAIN.C 28240 | -4/Warlord | Found Prototype Energy Cannon 28240 | -4/Warlord | Identified Vortex Driver 28245 | -4/Warlord | Found Prototype Energy Cannon 28245 | -4/Warlord | Identified Vortex Cannon 28249 | -4/Warlord | Found Vortex Driver 28322 | -4/Warlord | Met Warlord 28339 | -4/Warlord | Opened Warlord's prototype stash 28345 | -4/Warlord | Found Prototype Reactor 28345 | -4/Warlord | Identified Vortex Chain Reactor 28365 | -4/Warlord | Found Prototype Device 28365 | -4/Warlord | Identified Thermal Barrier 28590 | -4/Warlord | Warlord forces counterattacked 28634 | -4/Warlord | Spotted Executioner 28647 | -4/Warlord | Destroyed Executioner 28664 | -4/Warlord | Spotted Striker 28664 | -4/Warlord | Spotted Striker 28666 | -4/Warlord | Attacked by Warlord forces 28667 | -4/Warlord | Spotted IV-NHM(B) 28686 | -4/Warlord | Destroyed 11 combat bots 28705 | -4/Warlord | Discovered new exit (range 12) 28715 | -4/Warlord | Identified exit to Proximity Caves 28716 | -4/Warlord | Entered Proximity Caves 28939 | -3/Proximity Caves | Attracted the attention of an 0b10 checkpoint 28946 | -3/Proximity Caves | Build established: Mutant 29070 | -3/Proximity Caves | Snuck into a huge 0b10 base via the rear entrance 29164 | -3/Proximity Caves | Discovered new exit (range 13) 29210 | -3/Proximity Caves | Identified exit to Research 29378 | -3/Proximity Caves | Fabricated Imp. Force Field (x2) 29462 | -3/Proximity Caves | Build established: Commander-Mutant 29592 | -3/Proximity Caves | Entered Research 29592 | -3/Research | Accompanied by 4 allies 29592 | -3/Research | Evolved 2 slots: Utility x1, Weapon x1 29773 | -3/Research | Build established: Scavenger-Mutant 29800 | -3/Research | Fabricated Nanoactuators (x2) 29913 | -3/Research | Identified exit to Testing 30094 | -3/Research | Central database locked down 30168 | -3/Research | Entered Testing 30250 | -3/Testing | Found Ghost Barrier 30287 | -3/Testing | Found Prototype Energy Gun 30287 | -3/Testing | Identified Hyp. EM Gauss Rifle 30349 | -3/Testing | Discovered new exit (range 9) 30556 | -3/Testing | Identified exit to Research 30890 | -3/Testing | Fabricated Imp. Transmission Jammer? 31006 | -3/Testing | Found Prototype Slashing Weapon 31006 | -3/Testing | Identified Molecular Scythe 31735 | -3/Testing | Found Exp. Thermal Shield 31770 | -3/Testing | Found Prototype Processor 31770 | -3/Testing | Identified Exp. Melee Analysis Suite 31907 | -3/Testing | Entered Research 31907 | -2/Research | Warlord forces began assault on 0b10 31907 | -2/Research | Evolved 2 slots: Utility x2 31922 | -2/Research | Identified exit to Access 32017 | -2/Research | Research machine network offline 32231 | -2/Research | Build established: Hacker-Mutant 32251 | -2/Research | Spotted A6-2E4(H) 32261 | -2/Research | Borebot progress halted 32340 | -2/Research | Borebot progress halted 32486 | -2/Research | Borebot progress halted 32667 | -2/Research | Discovered new exit (range 12) 32704 | -2/Research | Identified exit to Quarantine 32720 | -2/Research | Entered Quarantine 32731 | -2/Quarantine | Found Alien Artifact 32731 | -2/Quarantine | Identified Phase Redirector 32851 | -2/Quarantine | Spotted Alpha 7 32896 | -2/Quarantine | Destroyed Alpha 7 32909 | -2/Quarantine | Found Prototype Processor 32909 | -2/Quarantine | Identified Exp. Target Analyzer 32918 | -2/Quarantine | Found Alien Launcher 32918 | -2/Quarantine | Identified Sigix Terminator 33124 | -2/Quarantine | Found Alien Artifact 33124 | -2/Quarantine | Identified Phase Armor 33220 | -2/Quarantine | Found Alien Artifact 33220 | -2/Quarantine | Identified Core Reset Matrix 33220 | -2/Quarantine | Used Core Reset Matrix 33224 | -2/Quarantine | Detected hypermatrix surge 33224 | -2/Quarantine | Sensed 13 artifacts in vicinity 33314 | -2/Quarantine | Discovered exit to Access (range 5) 33513 | -2/Quarantine | Found Subatomic Replicator 33774 | -2/Quarantine | Found Sigix Broadsword 33874 | -2/Quarantine | Repaired Enh. Biometal Leg 34067 | -2/Quarantine | Repaired Broken Adv. Transmission Jammer 34102 | -2/Quarantine | Build established: Hacker-Gladiator 34696 | -2/Quarantine | System corruption reached 10% 34860 | -2/Quarantine | Spotted Fortress 34982 | -2/Quarantine | Core integrity fell below 50% 34982 | -2/Quarantine | Destroyed Fortress 34996 | -2/Quarantine | Found Unknown Device 35001 | -2/Quarantine | Found Prototype Device 35110 | -2/Quarantine | Identified Antimissile System 35111 | -2/Quarantine | Identified Exp. Force Field 35159 | -2/Quarantine | Discovered new exit (range 6) 35164 | -2/Quarantine | Identified exit to Section 7 35166 | -2/Quarantine | Entered Section 7 35167 | -2/Section 7 | Sensed 25 artifacts in vicinity 35298 | -2/Section 7 | Build established: Scavenger-Gladiator 35338 | -2/Section 7 | Found Microwarp Drive 35749 | -2/Section 7 | Found Integrated Reactor 35749 | -2/Section 7 | Installed Integrated Reactor, increased core energy generation (+10) 35760 | -2/Section 7 | Discovered exit to Access (range 15) 35781 | -2/Section 7 | Spotted S7 Guard 35971 | -2/Section 7 | Found Integrated Dissipator 35971 | -2/Section 7 | Installed Integrated Dissipator, increased core heat dissipation (+20) 36096 | -2/Section 7 | Found Integrated Reactor 36096 | -2/Section 7 | Installed Integrated Reactor, increased core energy generation (+10) 36177 | -2/Section 7 | Spotted S7 Guard 36187 | -2/Section 7 | Found Core Membrane 36187 | -2/Section 7 | Installed Core Membrane, gained immunity to corruption 36224 | -2/Section 7 | Destroyed S7 Guard 36412 | -2/Section 7 | Entered Access 36412 | -1/Access | Evolved 2 slots: Power x1, Weapon x1 36703 | -1/Access | Fired Sigix Terminator 36724 | -1/Access | Destroyed 16 combat bots 36847 | -1/Access | Crushed by falling debris 36891 | -1/Access | Discovered new exit (range 8) 36898 | -1/Access | Identified exit to Command 36899 | -1/Access | Entered Command 36911 | -1/Command | Lost 6 parts (1p1n3u1w) 36953 | -1/Command | Found Unknown Device 36953 | -1/Command | Identified Antimissile System 37044 | -1/Command | Lost 3 parts (1p2u) 37067 | -1/Command | Spotted M Guard 37067 | -1/Command | Spotted M Guard 37067 | -1/Command | Spotted Combat Programmer 37067 | -1/Command | Spotted Combat Programmer 37099 | -1/Command | Crushed by falling debris 37100 | -1/Command | Core integrity fell below 50% 37133 | -1/Command | Crushed by falling debris 37134 | -1/Command | Emitted hypermatrix ping 37139 | -1/Command | Assembled emerged from beneath the floor 37155 | -1/Command | Crushed by falling debris 37186 | -1/Command | Lost 16 parts (2p2n11u1w) 37191 | -1/Command | Crushed by falling debris 37191 | -1/Command | Core integrity fell below 20% 37199 | -1/Command | First assault squad dispatched 37234 | -1/Command | Crushed by falling debris 37285 | -1/Command | Build established: Alien-Mutant 37331 | -1/Command | Crushed by falling debris 37335 | -1/Command | Crushed by falling debris 37338 | -1/Command | Crushed by falling debris 37350 | -1/Command | Crushed by falling debris 37381 | -1/Command | Crushed by falling debris 37433 | -1/Command | Crushed by falling debris 37440 | -1/Command | Destroyed by H-88 Terminator with Heavy Machine Gun Last Messages --------------- 37433_ Crushed by falling debris. 37437_ H-88 Terminator springs to life. 37437_ Penetrated by Slug. 37437_ H-88 Terminator springs to life. 37437_ Slug penetrates H-88 Terminator. 37437_ Enh. Biometal Leg destroyed. 37438_ H-88 Terminator springs to life. 37438_ Slug penetrates Wall. 37438_ Slug penetrates H-88 Terminator. 37438_ H-88 Terminator springs to life. 37438_ Slug penetrates Wall. 37438_ H-88 Terminator springs to life. 37438_ Penetrated by Slug. 37438_ H-88 Terminator springs to life. 37438_ Penetrated by Slug. 37438_ Enh. Nova Cannon destroyed. 37438_ Slug penetrates H-88 Terminator. 37438_ H-88 Terminator springs to life. 37440_ Kicked H-88 Terminator. 37440_ Penetrated by Slug. Map ----- +----------------------------------------------------+ | | | | | | | | | | | | | | | | | | | | | | | | | ?????????#######?????????????????????????????????? | | ?????????# # ###????????????????????????????????? | | ?????????###### ##???????????????????????????????? | | ?????????###??## ##??????????????????????????????? | | ?????????# #???#####???????????????????????####### | | ?????????# #????## ##??????????????????????# [ | | ?????????# #?????## ##?????????????????????# | | ?????????# #??????## ##????????????????????# | | ?????????# #???????########????????????????# [ | | ?????????###????????# ## #????????????????# | | ?????????# #????????### #????????????????# | | ?????????# #??????????## #????????????????# !! | | ?????????# #???????????## #????????????????# !! | | ?????????# #????????????#@#????????????????# ! | | ?????????###????????????#hhh???????????????# | | ?????????# #????????????#hhhh#?????????????# | | ?????????###????????????#hhhh#?????????????# | | ?????????# #????????????#hhhh#?????????????# | | ?????????# #????????????#hhhh#?????????????####/## | | ?????????# #????????????#hhh #??????????????# # | | ?????????# #????????????##ch##??????????????# | | ?????????# #??????????????cc#???????????????# | | ?????????# #?????????????? #???????????????# # | | ?????????# #?????????????? #???????????????## ## | | ?????????###?????????????? s#????????????????# #? | | ?????????###?????????????? #????????????????# #? | | ?????????# #?????????????? s#????????????????# #? | | ?????????# #??????????????++#????????????????# #? | | ?????????# #?????????????????????????????????# #? | | ?????????# #?????????????????????????????????# #? | | ?????????# #?????????????????????????????????# #? | | ?????????# #?????????????????????????????????# #? | | ?????????# #???#++???????????????????????????# #? | | ?????????# #???# ???????????????????????????# ? | | ?????????# #???# #??????????????????????????# #? | | ?????????# #???# #??????????????????????????# #? | | ?????????# #???# #??????????????????????????# #? | | ?????????# #???# #??????????????????????????# #? | +----------------------------------------------------+ Best States ------------- Heat Dissipation 146 Coolant Potential 120 Energy Generation 94 Energy Capacity 1090 Matter Stores 300 Matter Capacity 300 Sight Range 23 Robot Scan Range 20 Terrain Scan Density 10 ECM Strength 2 Jamming Range 16 Power Amplification 20 EM Shielding 4 Armor Coverage 1025 Resistance: KI 30 Resistance: TH 30 Resistance: EM 15 Utility Shielding 66 Point Defense Rating 240 Weapon Cycling 20 Melee Speed Boost 30 Phase Shifting 10 Evasion (%) 65 Targeting Accuracy 8 Melee Accuracy 16 Target Analysis 12 Core Analysis 6 Recoil Reduction 1 Offensive Hacking 38 Defensive Hacking 20 Item Schematics ----------------- None Robot Schematics ------------------ None Fabricated ------------ M-28 Smith | x1 | -7/Factory | Preloaded Powered Armor | x2 | -7/Factory Powered Armor | x2 | -7/Factory Myomer Leg | x2 | -6/Factory Enh. Flexi-carbon Leg | x1 | -4/Factory Myomer Leg | x2 | -4/Factory Myomer Leg | x2 | -4/Factory Imp. Force Field | x2 | -3/Proximity Caves Nanoactuators | x2 | -3/Research Imp. Transmission Jammer | x1 | -3/Testing Alien Tech Used ----------------- Phase Redirector Sigix Terminator Phase Armor Core Reset Matrix Sigix Broadsword Microwarp Drive Integrated Reactor Integrated Dissipator Core Membrane Achievements -------------- Origins Challenges ------------ None Game ------ Seed VisualMappingField Manual? 0 Play Time 08:08:28 Cumulative 100.8 hours Start 2023.11.11 @ 19:38:54 End 2023.11.12 @ 04:21:13 Sessions 1 Manual Loads 0 Difficulty Rogue Special Mode None Game No. 27 Rogue 27 Adventurer 0 Explorer 0 Win Type - Total 4 Types 3/0/1/0/0/0/0/0/0 Lore% 57 Gallery% 65 Achievement% 57 Wizard Run 0 Options --------- ASCII 0 Keyboard 1 Movement Numpad Keybinds 0 Fullscreen 1 Font 12/Terminus Map View 83x54 Tactical HUD 1 Map Filters NONE Filters NONE Steam 0 RUN: f554048e-7ee0-4d73-b092-659ff1b213cf